Workbook

Sheet раскл3-7
C2: Меню-раскладка к примерному 10-дневному меню
C3: для организации питания детей в дошкольных образовательных учреждениях
C4: от 3-7 лет
A5: День 1 - ый
A6: Прием пищи | C6: Выход блюда | D6: Кол - во | E6: Кол - во | F6: Пищевые вещества (г) | I6: Энергетическая | J6: № рецептуры
A7: Наименование блюд | D7: (в гр ) | E7: (в гр ) | I7: ценность
D8: брутто | E8: нетто | F8: белки | G8: жиры | H8: угл-ды | I8: Ккал
B9: ЗАВТРАК
A10: Каша манная молочная с маслом | C10: 200/3 | F10: 10.00 | G10: 10.00 | H10: 24.50 | I10: 228.00 | J10: ТТК №4
B11: Крупа манная | D11: 20.00 | E11: 20.00
B12: Молоко | D12: 100.00 | E12: 100.00
B13: вода | D13: 76.00 | E13: 76.00
B14: сахар | D14: 3.00 | E14: 3.00
B15: Соль | D15: 1.50 | E15: 1.50
B16: Масло сливочное | D16: 3.00 | E16: 3.00
A17: Чай с сахаром | C17: 180/5 | F17: 0.06 | G17: 0.02 | H17: 4.99 | I17: 20.00 | J17: № 411 Дели2016
B18: Заварка | D18: 0.3 | E18: 0.3
B19: сахар | D19: 5 | E19: 5
B20: Вода | D20: 180 | E20: 180
A21: Бутерброд с маслом сливочным | C21: 25/5 | F21: 1.90 | G21: 4.40 | H21: 13.00 | I21: 99.00 | J21: №1 Дели2010
B22: Батон нарезной | D22: 25.00 | E22: 25.00
B23: Масло сливочное | D23: 5.00 | E23: 5.00
A24: Итого: | C24: 418 | F24: =SUM(F9:F23) -> 11.96 | G24: =SUM(G9:G23) -> 14.42 | H24: =SUM(H9:H23) -> 42.49 | I24: =SUM(I9:I23) -> 347.00
A25: Сок фруктовый | C25: 125 | D25: 125 | E25: 125 | F25: 0.90 | G25: 0.08 | H25: 22.00 | I25: 91.00 | J25: №399 Сб.Дели2010
B26: сок фруктовый в ассортим.0,125 упак 1/18 | D26: 1 | E26: 1
A27: Итого: | C27: =SUM(C25:C25) -> 125 | F27: =SUM(F25) -> 0.90 | G27: =SUM(G25) -> 0.08 | H27: =SUM(H25) -> 22.00 | I27: =SUM(I25) -> 91.00
C28: 543 | F28: =F24+F27 -> 12.86 | G28: =G24+G27 -> 14.50 | H28: =H24+H27 -> 64.49 | I28: =I24+I27 -> 438.00
B29: ОБЕД
A30: Салат из свежей капусты | C30: 50 | F30: 0.80 | G30: 2.50 | H30: 4.60 | I30: 45.00 | J30: № 21Дели 2016
B31: Капуста свежая | D31: 55.63 | E31: 44.50
B32: Соль | D32: 0.50 | E32: 0.50
B33: Масло растительное | D33: 2.50 | E33: 2.50
B34: сахар | D34: 2.50 | E34: 2.50
A35: Суп вермишелевый с картофелем и курицей | C35: 200/10 | F35: 3.86 | G35: 5.80 | H35: 15.24 | I35: 133.00 | J35: №88 Дели 2016
B36: цыплята | D36: 22.61 | E36: 14.67
B37: Картофель | D37: 100.20 | E37: 60.00
B38: Морковь | D38: 10.64 | E38: 8.00
B39: Лук репчатый | D39: 9.52 | E39: 8.00
B40: Вермишель | D40: 8.00 | E40: 8.00
B41: Масло растительное | D41: 2.40 | E41: 2.40
B42: Соль | D42: 1.00 | E42: 1.00
B43: Вода | D43: 152.00 | E43: 152.00
A44: Тефтели из говядины с соусом томатным | C44: 70/10 | F44: 6.2 | G44: 6.5 | H44: 5 | I44: 103 | J44: ТТК № 1152 от 09.10.2020 и №364 С-Петербург 2008
B45: фарш из говядины | D45: 48 | E45: 48
B46: Хлеб пшеничный 1с | D46: 6 | E46: 6
B47: Вода | D47: 6 | E47: 6
B48: Лук репчатый | D48: 14.28 | E48: 11.99
B49: Крупа манная | D49: 3 | E49: 3
B50: Соль | D50: 0.5 | E50: 0.5
B51: масса полуфабриката | E51: 74
B52: Масло растительное | D52: 2 | E52: 2
B53: соус томатный | E53: 10.0
B54: вода | D54: 9.0 | E54: 9.0
B55: Масло растительное | D55: 0.4 | E55: 0.4
B56: Мука пшеничная | D56: 0.4 | E56: 0.4
B57: морковь | D57: 0.79 | E57: 0.60
B58: Лук репчатый | D58: 0.24 | E58: 0.20
B59: Томат-паста | D59: 1.0 | E59: 1.0
B60: Масло растительное | D60: 0.2 | E60: 0.2
B61: соль | D61: 0.1 | E61: 0.1
B62: сахар | D62: 0.2 | E62: 0.2
A63: Каша гречневая вязкая | C63: 130/3 | F63: 6.20 | G63: 5.80 | H63: 38.00 | I63: 229.00 | J63: №182,Дели 2016
B64: Крупа гречневая | D64: 32.50 | E64: 32.50
B65: Вода | D65: 108.00 | E65: 108.00
B66: Масло сливочное | D66: 3.00 | E66: 3.00
B67: Соль | D67: 0.50 | E67: 0.50
A68: Кисель | C68: 180 | H68: 10.00 | I68: 40.00 | J68: №284Партнер2014
B69: Кисель-концентрат | D69: 21.60 | E69: 21.60
B70: вода | D70: 180.00 | E70: 180.00
B71: Сахар | D71: 5.00 | E71: 5.00
A72: Хлеб сельский | C72: 37.5 | D72: 37.50 | E72: 37.50 | F72: 1.8 | G72: 0.4 | H72: 18 | I72: 82.5
A73: Итого: | C73: 690.5 | F73: =SUM(F29:F72) -> 18.86 | G73: =SUM(G29:G72) -> 21.00 | H73: =SUM(H29:H72) -> 90.84 | I73: =SUM(I29:I72) -> 632.50
B74: ПОЛДНИК
A75: Булочка Домашняя | C75: 50 | F75: 4.90 | G75: 5.00 | H75: 38.00 | I75: 217.00 | J75: №258 Партнер г. Уфа 2014
B76: Мука пшеничная | D76: 34.00 | E76: 34.00
B77: Сахар | D77: 7.00 | E77: 7.00
B78: вода | D78: 14.00 | E78: 14.00
B79: Масло растительное | D79: 7.00 | E79: 7.00
B80: Дрожжи сухие | D80: 0.20 | E80: 0.20
B81: Соль | D81: 0.30 | E81: 0.30
B82: Яйцо | D82: 1.00 | E82: 1.00
B83: Масса полуфабриката | E83: 60.50
B84: Масло растительное | D84: 0.20 | E84: 0.20
A85: Катык | C85: 110 | F85: 3.77 | G85: 2.75 | H85: 5 | I85: 62.1 | J85: №401Дели2010
B86: катык | D86: 114.00 | E86: 110.00
A87: Рагу с курицей | C87: 120/25 | F87: 6.00 | G87: 9.50 | H87: 16.90 | I87: 177.00 | J87: ТТК №63
B88: цыплята | D88: 53.84 | E88: 34.99
B89: Масса тушеного мяса | E89: 25
B90: Картофель | D90: 146.96 | E90: 88.00
B91: Морковь | D91: 14.89 | E91: 11.20
B92: Соль | D92: 0.50 | E92: 0.50
B93: вода | D93: 32.00 | E93: 32.00
B94: Масло растительное | D94: 4.00 | E94: 4.00
B95: Мука пшеничная | D95: 2.00 | E95: 2.00
B96: сахар | D96: 0.38 | E96: 0.38
A97: Напиток из урюка | C97: 180 | F97: 0.6 | G97: 0.1 | H97: 15.0 | I97: 63 | J97: ТТК №68
B98: урюк | D98: 15.30 | E98: 15.00
B99: вода | D99: 180.00 | E99: 180.00
B100: Сахар | D100: 5.00 | E100: 5.00
A101: Хлеб пшеничный 1с | C101: 20 | D101: 20.00 | E101: 20.00 | F101: 1.52 | G101: 0.16 | H101: 9.84 | I101: 47.00
A102: Итого: | C102: 505 | F102: =SUM(F75:F101) -> 16.79 | G102: =SUM(G75:G101) -> 17.47 | H102: 84.74 | I102: 565.60
A103: ВСЕГО: | C103: =C24+C27+C73+C102 -> 1738.5 | F103: =F24+F27+F73+F102 -> 48.51 | G103: =G24+G27+G73+G102 -> 52.97 | H103: =H24+H27+H73+H102 -> 240.07 | I103: =I24+I27+I73+I102 -> 1636.10
A105: День 2- ой
A106: Прием пищи | C106: Выход блюда | D106: Кол - во | E106: Кол - во | F106: Пищевые вещества (г) | I106: Энергетическая | J106: № рецептуры
A107: Наименование блюд | D107: (в гр ) | E107: (в гр ) | I107: ценность
D108: брутто | E108: нетто | F108: белки | G108: жиры | H108: угл-ды | I108: Ккал
B109: ЗАВТРАК
A110: Каша "Дружба" молочная с маслом | C110: 200/3 | F110: 5.20 | G110: 5.80 | H110: 25.20 | I110: 173.80 | J110: ТТК №7
B111: Крупа рисовая | D111: 15.00 | E111: 15.00
B112: Крупа пшенная | D112: 11.00 | E112: 11.00
B113: Молоко | D113: 86.00 | E113: 86.00
B114: Вода | D114: 86.00 | E114: 86.00
B115: Сахар | D115: 1.00 | E115: 1.00
B116: Соль | D116: 1.00 | E116: 1.00
B117: Масло сливочное | D117: 3.00 | E117: 3.00
A118: Какао с молоком | C118: 180 | F118: 2.42 | G118: 2.58 | H118: 13.61 | I118: 87.30 | J118: №272 Парнер г. Уфа 2014
B119: Какао-порошок | D119: 1.50 | E119: 1.50
B120: Сахар | D120: 8.00 | E120: 8.00
B121: Молоко | D121: 90.00 | E121: 90.00
B122: Вода | D122: 100.00 | E122: 100.00
A123: Бутерброд с сыром, маслом | C123: 25/7/3 | F123: 4.00 | G123: 6.00 | H123: 12.83 | I123: 122.00 | J123: №3 Дели2010
B124: Батон нарезной | D124: 25.00 | E124: 25.00
B125: Сыр | D125: 7.14 | E125: 7.00
B126: Масло сливочное | D126: 3.00 | E126: 3.00
A127: Итого: | C127: 418 | F127: =SUM(F109:F125) -> 11.62 | G127: =SUM(G109:G125) -> 14.38 | H127: =SUM(H109:H125) -> 51.64 | I127: =SUM(I109:I125) -> 383.10
A128: Фрукты свежие | C128: 100 | D128: 114 | E128: 100 | F128: 1.20 | G128: 0.34 | H128: 10.50 | I128: 49.00 | J128: № 368 Дели 2010
A129: апельсин
A130: Итого: | C130: 100 | F130: =SUM(F128) -> 1.20 | G130: =SUM(G128) -> 0.34 | H130: =SUM(H128) -> 10.50 | I130: =SUM(I128) -> 49.00
C131: 518 | F131: =F127+F130 -> 12.82 | G131: =G127+G130 -> 14.72 | H131: =H127+H130 -> 62.14 | I131: =I127+I130 -> 432.10
B132: ОБЕД
A133: Огурцы свежие порционно | C133: 50 | F133: 0.35 | G133: 0.05 | H133: 0.95 | I133: 6.00 | J133: стр563,сб1996
B134: огурцы свежие | D134: 51.00 | E134: 50.00
A135: Суп из овощей с мясными фрикадельками, со сметаной | C135: 200/15/6 | F135: 6.20 | G135: 5.25 | H135: 29.00 | I135: 188.00 | J135: №64 "Партнер"2014
B136: Фарш из говядины | D136: 17.1 | E136: 17.1
B137: Лук репчатый | D137: 1.79 | E137: 1.5
B138: Яйцо | D138: 1.5 | E138: 1.5
B139: Вода для фарша | D139: 1.7 | E139: 1.7
B140: Масса полуфабриката | E140: 20.1
B141: Капуста свежая | D141: 20.00 | E141: 16.00
B142: Картофель | D142: 66.80 | E142: 40.00
B143: Морковь | D143: 10.64 | E143: 8.00
B144: Лук репчатый | D144: 9.52 | E144: 8.00
B145: Масло растительное | D145: 4.00 | E145: 4.00
B146: Соль | D146: 1.00 | E146: 1.00
B147: Бульон или вода | D147: 152.00 | E147: 152.00
B148: Сметана | D148: 6.00 | E148: 6.00
A149: Котлеты рубленые из птицы | C149: 70 | F149: 6.20 | G149: 10.80 | H149: 3.00 | I149: 134.00 | J149: № 205,справ.М2003
B150: Цыплята | D150: 80 | E150: 52.0
B151: Хлеб пшеничный 1с | D151: 13 | E151: 13.0
B152: Вода | D152: 18.5 | E152: 18.5
B153: Сухари панировочные | D153: 7 | E153: 7.0
B154: масса полуфабриката | E154: 87.5
B155: Масло растительное | D155: 0.9 | E155: 0.9
B156: Соль | D156: 0.8 | E156: 0.8
A157: Пюре Картофельное | C157: 130 | F157: 3.70 | G157: 4.44 | H157: 25.00 | I157: 155.00 | J157: №137 Партнер 2014
B158: Картофель | D158: 186.37 | E158: 111.60
B159: Молоко | D159: 20.47 | E159: 19.50
B160: Масло сливочное | D160: 3.00 | E160: 3.00
B161: Соль | D161: 1.00 | E161: 1.00
A162: Компот из свежих яблок | C162: 180 | F162: 0.10 | G162: 0.10 | H162: 11.80 | I162: 49.00 | J162: № 390 Дели 2016
B163: яблоки | D163: 40.8 | E163: 36.0
B164: вода | D164: 155.0 | E164: 155.0
B165: сахар | D165: 5.0 | E165: 5.0
A166: Хлеб сельский | C166: 37.5 | D166: 37.50 | E166: 37.50 | F166: 1.8 | G166: 0.4 | H166: 18 | I166: 82.5
A167: Итого: | C167: 683.5 | F167: =SUM(F133:F166) -> 18.35 | G167: =SUM(G133:G166) -> 21.04 | H167: 87.75 | I167: 614.50
B168: ПОЛДНИК
A169: Кондитерские изделия | C169: 10 | F169: 3.86 | G169: 3.38 | H169: 34.10 | I169: 180.00
A170: печенье | D170: 10.00 | E170: 10.00
A171: Молоко кипяченое | C171: 110 | F171: 2.50 | G171: 2.75 | H171: 4.00 | I171: 51.00 | J171: №419 Дели2016
B172: молоко | D172: 115.90 | E172: 110.00
A173: Суфле из творога с молоком сгущенным | C173: 150/20 | F173: 9.00 | G173: 12.50 | H173: 24.00 | I173: 245.00 | J173: ТТК №567
B174: Творог | D174: 109.28 | E174: 107.14
B175: крупа манная | D175: 11.40 | E175: 11.40
B176: Яйцо | D176: 7.14 | E176: 7.14
B177: Сахар | D177: 11.40 | E177: 11.40
B178: Молоко | D178: 21.40 | E178: 21.40
B179: Сметана | D179: 14.28 | E179: 14.28
B180: соль | D180: 0.30 | E180: 0.30
B181: Масло растительное | D181: 0.60 | E181: 0.60
B182: молоко сгущенное | D182: 20.00 | E182: 20.00
A183: Чай с сахаром и лимоном | C183: 180/5/5 | F183: 0.12 | G183: 0.01 | H183: 10.20 | I183: 41.00 | J183: №393Дели2010
B184: Заварка | D184: 0.35 | E184: 0.35
B185: Сахар | D185: 5 | E185: 5
B186: лимон | D186: 5.1 | E186: 5
B187: Вода | D187: 180.0 | E187: 180.0
A188: Хлеб пшеничный 1с | C188: 20 | D188: 20.00 | E188: 20.00 | F188: 1.52 | G188: 0.16 | H188: 9.84 | I188: 47.00
A189: Итого: | C189: 500 | F189: =SUM(F168:F188) -> 17.00 | G189: =SUM(G168:G188) -> 18.80 | H189: =SUM(H168:H188) -> 82.14 | I189: =SUM(I168:I188) -> 564.00
A190: ВСЕГО: | C190: =C127+C130+C167+C189 -> 1701.5 | F190: =F127+F130+F167+F189 -> 48.17 | G190: =G127+G130+G167+G189 -> 54.56 | H190: =H127+H130+H167+H189 -> 232.03 | I190: =I127+I130+I167+I189 -> 1610.60
A192: День 3 - ий
A193: Прием пищи | C193: Выход блюда | D193: Кол - во | E193: Кол - во | F193: Пищевые вещества (г) | I193: Энергетическая | J193: № рецептуры
A194: Наименование блюд | D194: (в гр ) | E194: (в гр ) | I194: ценность
D195: брутто | E195: нетто | F195: белки | G195: жиры | H195: угл-ды | I195: Ккал
B196: ЗАВТРАК
A197: Каша Геркулесовая молочная с маслом | C197: 200/3 | F197: 6.70 | G197: 7.50 | H197: 22.00 | I197: 182.30 | J197: ТТК №5
B198: Крупа Геркулесовая | D198: 25.00 | E198: 25.00
B199: Молоко | D199: 100.00 | E199: 100.00
B200: вода | D200: 76.00 | E200: 76.00
B201: Сахар | D201: 1.00 | E201: 1.00
B202: Соль | D202: 1.00 | E202: 1.00
B203: Масло сливочное | D203: 3.00 | E203: 3.00
... 707 more rows

Sheet 1-3 лет Послед
A1: "Согласовано" | E1: "Утверждаю"
A2: ________________________ | E2: Заместитель генерального директора по организации питания АО "Департамент продовольствия и социального питания г. Казани"
A3: __________________________ | E3: __________________А.К. Агапова
E4: Май 2025г
C5: Примерное 10-дневное меню
C6: для организации питания детей в дошкольных образовательных учреждениях
C7: от 1-3 лет с 7-12 часовым пребыванием
B8: 1 неделя
A9: День 1 - ый
A10: Прием пищи | C10: Выход блюда | D10: Пищевые вещества (г) | G10: Энергетическая | H10: № рецептуры
A11: Наименование блюд | G11: ценность
D12: белки | E12: жиры | F12: угл-ды | G12: Ккал
B13: ЗАВТРАК
A14: Каша манная молочная с маслом | C14: 150/3 | D14: 7.50 | E14: 7.50 | F14: 18.40 | G14: 171.10 | H14: ТТК №4
A15: Чай с сахаром | C15: 160/4 | D15: 0.05 | E15: 0.01 | F15: 4.42 | G15: 18.00 | H15: № 411 Дели2016
A16: Бутерброд с маслом сливочным | C16: 25/5 | D16: 1.9 | E16: 4.4 | F16: 13 | G16: 99 | H16: №1 Дели2010
A17: Итого: | C17: 347 | D17: =SUM(D13:D16) -> 9.45 | E17: =SUM(E13:E16) -> 11.91 | F17: =SUM(F13:F16) -> 35.82 | G17: =SUM(G13:G16) -> 288.10
A18: Сок | C18: 125 | D18: 0.60 | E18: 0.30 | F18: 13.00 | G18: 57.00 | H18: №418Дели2016
A19: персиковый
A20: Итого: | C20: 125 | D20: =SUM(D18) -> 0.60 | E20: =SUM(E18) -> 0.30 | F20: =SUM(F18) -> 13.00 | G20: =SUM(G18) -> 57.00
C21: 472 | D21: =D17+D20 -> 10.05 | E21: =E17+E20 -> 12.21 | F21: =F17+F20 -> 48.82 | G21: =G17+G20 -> 345.10
B22: ОБЕД
A23: Салат из свежей капусты | C23: 30 | D23: 0.50 | E23: 1.50 | F23: 2.80 | G23: 27.00 | H23: № 21Дели 2016
A24: Суп вермишелевый с картофелем и курицей | C24: 150/10 | D24: 3.00 | E24: 4.32 | F24: 11.34 | G24: 99.00 | H24: №88 Дели 2016
A25: Тефтели из говядины | C25: 50 | D25: 3.87 | E25: 5 | F25: 3.13 | G25: 73 | H25: ТТК № 1152 от 09.10.2020
A26: Каша гречневая вязкая | C26: 110/2,5 | D26: 5.50 | E26: 5.00 | F26: 32.00 | G26: 195.00 | H26: №182,Дели 2016
A27: Кисель | C27: 150 | F27: 8.34 | G27: 33.34 | H27: №284Партнер2014
A28: Хлеб сельский | C28: 30 | D28: 1.5 | E28: 0.3 | F28: 14.3 | G28: 66
A29: Итого: | C29: 532.50 | D29: =SUM(D23:D28) -> 14.37 | E29: =SUM(E23:E28) -> 16.12 | F29: 71.91 | G29: 493.34
B30: ПОЛДНИК
A31: Булочка Домашняя | C31: 40 | D31: 3.60 | E31: 4.00 | F31: 29.00 | G31: 167.00 | H31: №258 Партнер г. Уфа 2014
A32: Катык | C32: 100 | D32: 3.00 | E32: 2.50 | F32: 4.50 | G32: 54.30 | H32: №401Дели2010
A33: Рагу с курицей | C33: 20/100 | D33: 4.50 | E33: 7.60 | F33: 13.00 | G33: 138.00 | H33: ТТК №63
A34: Напиток из урюка | C34: 150 | D34: 0.50 | E34: 0.03 | F34: 12.50 | G34: 52.10 | H34: ТТК №68
A35: Хлеб пшеничный 1с | C35: 20 | D35: 1.6 | E35: 0.2 | F35: 9.8 | G35: 47
A36: Итого: | C36: 430.00 | D36: =SUM(D31:D35) -> 13.20 | E36: =SUM(E31:E35) -> 14.33 | F36: =SUM(F31:F35) -> 68.80 | G36: =SUM(G31:G35) -> 458.40
A37: ВСЕГО: | C37: =C17+C20+C29+C36 -> 1434.50 | D37: 37.62 | E37: 42.66 | F37: 189.53 | G37: 1296.84
A38: День 2- ой
A39: Прием пищи | C39: Выход блюда | D39: Пищевые вещества (г) | G39: Энергетическая | H39: № рецептуры
A40: Наименование блюд | G40: ценность
D41: белки | E41: жиры | F41: угл-ды | G41: Ккал
B42: ЗАВТРАК
A43: Каша "Дружба" молочная с маслом | C43: 150/3 | D43: 3.90 | E43: 4.35 | F43: 19.00 | G43: 131.00 | H43: ТТК №7
A44: Какао с молоком | C44: 160 | D44: 2.15 | E44: 2.29 | F44: 12.09 | G44: 65.16 | H44: №272 Парнер г. Уфа 2014
A45: Бутерброд с сыром, маслом | C45: 25/5/3 | D45: 3.50 | E45: 5.95 | F45: 12.90 | G45: 119.60 | H45: №3Дели2010
A46: Итого: | C46: 346 | D46: =SUM(D42:D45) -> 9.55 | E46: 12.33 | F46: =SUM(F42:F45) -> 43.99 | G46: =SUM(G42:G45) -> 315.76
A47: Фрукты свежие | C47: 85 | D47: 0.40 | E47: 0.34 | F47: 10.50 | G47: 47.00 | H47: № 386 Дели 2016
A48: апельсин
A49: Итого: | C49: 85 | D49: =SUM(D47) -> 0.40 | E49: =SUM(E47) -> 0.34 | F49: =SUM(F47) -> 10.50 | G49: =SUM(G47) -> 47.00
C50: 431 | D50: =D46+D49 -> 9.95 | E50: =E46+E49 -> 12.67 | F50: =F46+F49 -> 54.49 | G50: =G46+G49 -> 362.76
B51: ОБЕД
A52: Огурцы свежие порционно | C52: 30 | D52: 0.21 | E52: 0.03 | F52: 0.57 | G52: 3.39 | H52: стр563,сб1996
A53: Суп из овощей с мясными фрикадельками, со сметаной | C53: 150/10/5 | D53: 4.70 | E53: 3.90 | F53: 23.00 | G53: 146.00 | H53: №64 "Партнер"2014
A54: Котлеты рубленые из птицы | C54: 50 | D54: 4.40 | E54: 8.30 | F54: 2.00 | G54: 100.00 | H54: № 205,справ.М2003
A55: Пюре Картофельное | C55: 110 | D55: 3.13 | E55: 3.76 | F55: 13.03 | G55: 131.15 | H55: №137 Партнер 2014
A56: Компот из свежих яблок | C56: 150 | D56: 0.10 | E56: 0.10 | F56: 10.20 | G56: 42.10 | H56: № 390 Дели 2016
A57: Хлеб сельский | C57: 30 | D57: 1.5 | E57: 0.3 | F57: 14.3 | G57: 66
A58: Итого: | C58: 535.00 | D58: =SUM(D52:D57) -> 14.04 | E58: =SUM(E52:E57) -> 16.39 | F58: =SUM(F52:F57) -> 63.10 | G58: =SUM(G52:G57) -> 488.64
B59: ПОЛДНИК
A60: Кондитерские изделия | C60: 10 | D60: 2.20 | E60: 2.80 | F60: 20.50 | G60: 114.00
A61: печенье
A62: Молоко кипяченое | C62: 100 | D62: 2.30 | E62: 2.50 | F62: 3.60 | G62: 46.00 | H62: №419 Дели2016
A63: Суфле из творога с молоком сгущенным | C63: 100/10 | D63: 5.82 | E63: 8.10 | F63: 15.53 | G63: 158.00 | H63: ТТК №567
A64: Чай с сахаром и лимоном | C64: 150/4/4 | D64: 0.09 | E64: 0.01 | F64: 8.50 | G64: 34.50 | H64: №393Дели2010
A65: Хлеб пшеничный 1с | C65: 20 | D65: 1.6 | E65: 0.2 | F65: 9.8 | G65: 47
A66: Итого: | C66: 398 | D66: =SUM(D60:D65) -> 12.01 | E66: =SUM(E60:E65) -> 13.61 | F66: =SUM(F60:F65) -> 57.93 | G66: =SUM(G60:G65) -> 399.50
A67: ВСЕГО: | C67: =C46+C49+C58+C66 -> 1364.00 | D67: 36.00 | E67: 42.67 | F67: 175.52 | G67: 1250.90
A68: День 3 - ий
A69: Прием пищи | C69: Выход блюда | D69: Пищевые вещества (г) | G69: Энергетическая | H69: № рецептуры
A70: Наименование блюд | G70: ценность
D71: белки | E71: жиры | F71: угл-ды | G71: Ккал
B72: ЗАВТРАК
A73: Каша геркулесовая молочная с маслом | C73: 150/3 | D73: 5.00 | E73: 5.63 | F73: 16.50 | G73: 136.50 | H73: ТТК №5
A74: Чай с молоком,сахаром | C74: 160/4 | D74: 2.30 | E74: 2.00 | F74: 11.90 | G74: 74.80 | H74: №394Дели2010
A75: Бутерброд с маслом сливочным | C75: 25/5 | D75: 1.9 | E75: 4.4 | F75: 13 | G75: 99 | H75: №1 Дели2010
A76: Итого: | C76: 347 | D76: =SUM(D72:D75) -> 9.20 | E76: =SUM(E72:E75) -> 12.03 | F76: =SUM(F72:F75) -> 41.40 | G76: =SUM(G72:G75) -> 310.30
A77: Сок | C77: 125 | D77: 0.80 | E77: 0.20 | F77: 7.00 | G77: 33.00 | H77: №418Дели2016
A78: персиковый
A79: Итого: | C79: =SUM(C77:C77) -> 125 | D79: =SUM(D77) -> 0.80 | E79: =SUM(E77) -> 0.20 | F79: =SUM(F77) -> 7.00 | G79: =SUM(G77) -> 33.00
C80: 472 | D80: =D76+D79 -> 10.00 | E80: =E76+E79 -> 12.23 | F80: =F76+F79 -> 48.40 | G80: =G76+G79 -> 343.30
B81: ОБЕД
A82: Помидоры свежие порционно | C82: 30 | D82: 0.42 | E82: 0.06 | F82: 1.37 | G82: 9.00 | H82: стр563,сб1996
A83: Суп с рисовой крупой и картофелем с курицей | C83: 150/10 | D83: 2.00 | E83: 6.80 | F83: 3.00 | G83: 82.00 | H83: №86 Дели 2016
A84: Соус мясной "Смак" | C84: 50 | D84: 7.21 | E84: 4.86 | F84: 12.14 | G84: 121.43 | H84: ТТК № 1523 от 28.07.2021
A85: Макароны отварные | C85: 110 | D85: 4.10 | E85: 3.00 | F85: 25.00 | G85: 143.40 | H85: №218 Дели 2016
A86: Компот из сухофруктов | C86: 150 | D86: 0.15 | E86: 0.1 | F86: 21.5 | G86: 87 | H86: №394, Дели 2016
A87: Хлеб сельский | C87: 30 | D87: 1.5 | E87: 0.3 | F87: 14.3 | G87: 66
A88: Итого: | C88: 530 | D88: =SUM(D82:D87) -> 15.38 | E88: =SUM(E82:E87) -> 15.11 | F88: =SUM(F82:F87) -> 77.31 | G88: =SUM(G82:G87) -> 508.83
B89: ПОЛДНИК
A90: Булочка Дорожная | C90: 40 | D90: 2.84 | E90: 4.73 | F90: 24.08 | G90: 150.40 | H90: №453 Дели 2016
A91: Ряженка | C91: 100 | D91: 2.90 | E91: 2.50 | F91: 4.20 | G91: 55.60 | H91: №401Дели2010
A92: Яйцо вареное | C92: 1/2шт | D92: 2.50 | E92: 2.30 | F92: 0.15 | G92: 31.50 | H92: №227 Дели 2016
A93: Капуста тушеная (в сметанном соусе) | C93: 110 | D93: 2.75 | E93: 4.48 | F93: 20 | G93: 131 | H93: ТТК№53Д
A94: Напиток шиповника | C94: 150/4 | D94: 0.5 | E94: 0.25 | F94: 5.4 | G94: 25.9 | H94: ТТК № 59
A95: Хлеб пшеничный 1с | C95: 20 | D95: 1.6 | E95: 0.2 | F95: 9.8 | G95: 47
A96: Итого: | C96: 448 | D96: =SUM(D90:D95) -> 13.09 | E96: =SUM(E90:E95) -> 14.46 | F96: =SUM(F90:F95) -> 63.63 | G96: =SUM(G90:G95) -> 441.40
A97: ВСЕГО: | C97: =C76+C79+C88+C96 -> 1450 | D97: 38.47 | E97: 41.80 | F97: 189.34 | G97: 1293.53
A98: День 4 - ый
A99: Прием пищи | C99: Выход блюда | D99: Пищевые вещества (г) | G99: Энергетическая | H99: № рецептуры
A100: Наименование блюд | G100: ценность
D101: белки | E101: жиры | F101: угл-ды | G101: Ккал
B102: ЗАВТРАК
A103: Каша пшённая молочная с маслом | C103: 150/3 | D103: 6.00 | E103: 4.95 | F103: 19.50 | G103: 146.00 | H103: ТТК №6
A104: Кофейный напиток с молоком | C104: 165/7 | D104: 1.16 | E104: 1.28 | F104: 11.4 | G104: 62 | H104: №270 Партнер г. Уфа 2014
A105: Бутерброд с сыром, маслом | C105: 25/5/3 | D105: 3.50 | E105: 5.95 | F105: 12.90 | G105: 119.60 | H105: №3Дели2010
A106: Итого: | C106: 358 | D106: =SUM(D102:D105) -> 10.66 | E106: =SUM(E102:E105) -> 12.18 | F106: =SUM(F102:F105) -> 43.80 | G106: =SUM(G102:G105) -> 327.60
A107: Фрукты свежие | C107: 85 | D107: 0.34 | E107: 0.34 | F107: 10.20 | G107: 45.00 | H107: № 386 Дели 2016
A108: яблоко зеленое
A109: Итого: | C109: 85 | D109: =SUM(D107) -> 0.34 | E109: =SUM(E107) -> 0.34 | F109: =SUM(F107) -> 10.20 | G109: =SUM(G107) -> 45.00
C110: 443 | D110: =D106+D109 -> 11.00 | E110: =E106+E109 -> 12.52 | F110: =F106+F109 -> 54.00 | G110: =G106+G109 -> 372.60
B111: ОБЕД
A112: Салат из свежих огурцов | C112: 30 | D112: 0.22 | E112: 1.80 | F112: 0.72 | G112: 20.00 | H112: №13 Дели2016г
A113: Щи со свежей капустой, картофелем, на м/б и сметаной | C113: 150/5 | D113: 3.45 | E113: 6.00 | F113: 17.85 | G113: 140.00 | H113: №73 Дели 2016
A114: Жаркое по-домашнему из отварной говядины | C114: 130 | D114: 8.86 | E114: 9.01 | F114: 27.28 | G114: 226 | H114: ТТК №29 Д
A115: Кисель | C115: 150 | F115: 8.34 | G115: 33.34 | H115: №284Партнер2014
A116: Хлеб сельский | C116: 30 | D116: 1.5 | E116: 0.3 | F116: 14.3 | G116: 66
A117: Итого: | C117: 495 | D117: =SUM(D112:D116) -> 14.03 | E117: =SUM(E112:E116) -> 17.11 | F117: =SUM(F112:F116) -> 68.49 | G117: =SUM(G112:G116) -> 485.34
B118: ПОЛДНИК
A119: Кондитерские изделия | C119: 21 | D119: 1.00 | E119: 2.00 | F119: 20.00 | G119: 95.00
A120: вафли
A121: Молоко кипяченое | C121: 100 | D121: 2.30 | E121: 2.50 | F121: 3.60 | G121: 46.00 | H121: №419 Дели2016
A122: Пудинг из творога с рисом с повидлом | C122: 110/10 | D122: 7.20 | E122: 8.32 | F122: 22.64 | G122: 194.00 | H122: № 250 Дели 2016
A123: Чай с сахаром | C123: 160/4 | D123: 0.05 | E123: 0.01 | F123: 4.42 | G123: 18.00 | H123: № 411 Дели2016
A124: Хлеб пшеничный 1с | C124: 20 | D124: 1.6 | E124: 0.2 | F124: 9.8 | G124: 47
A125: Итого: | C125: 425 | D125: =SUM(D119:D124) -> 12.15 | E125: =SUM(E119:E124) -> 13.03 | F125: =SUM(F119:F124) -> 60.46 | G125: =SUM(G119:G124) -> 400.00
A126: ВСЕГО: | C126: =C106+C109+C117+C125 -> 1363 | D126: 37.18 | E126: 42.66 | F126: 182.95 | G126: 1257.94
A127: День 5 - ый
A128: Прием пищи | C128: Выход блюда | D128: Пищевые вещества (г) | G128: Энергетическая | H128: № рецептуры
A129: Наименование блюд | G129: ценность
D130: белки | E130: жиры | F130: угл-ды | G130: Ккал
B131: ЗАВТРАК
A132: Каша полбяная молочная с маслом | C132: 150/3 | D132: 6.15 | E132: 5.92 | F132: 14.4 | G132: 135 | H132: ТТК №1
A133: Какао с молоком | C133: 160 | D133: 2.15 | E133: 2.29 | F133: 12.09 | G133: 65.16 | H133: №272 Парнер г. Уфа 2014
A134: Бутерброд с маслом сливочным | C134: 25/5 | D134: 1.9 | E134: 4.4 | F134: 13 | G134: 99 | H134: №1 Дели2010
A135: Итого: | C135: 343 | D135: =SUM(D131:D134) -> 10.20 | E135: =SUM(E131:E134) -> 12.61 | F135: =SUM(F131:F134) -> 39.49 | G135: =SUM(G131:G134) -> 299.16
A136: Сок | C136: 125 | D136: 0.30 | E136: 0.00 | F136: 10.00 | G136: 40.00 | H136: №418Дели2016
A137: вишневый
A138: Итого: | C138: 125 | D138: =SUM(D136) -> 0.30 | E138: =SUM(E136) -> 0.00 | F138: =SUM(F136) -> 10.00 | G138: =SUM(G136) -> 40.00
C139: 468 | D139: =D135+D138 -> 10.50 | E139: =E135+E138 -> 12.61 | F139: =F135+F138 -> 49.49 | G139: =G135+G138 -> 339.16
B140: ОБЕД
A141: Огурцы свежие порционно | C141: 30 | D141: 0.21 | E141: 0.03 | F141: 0.57 | G141: 3.39 | H141: стр563,сб1996
A142: Свекольник с курицей, со сметаной | C142: 150/10/5 | D142: 2.90 | E142: 4.53 | F142: 14.21 | G142: 109.00 | H142: №35,сб.Пермь2001
A143: Плов из курицы | C143: 130 | D143: 10 | E143: 11.5 | F143: 32 | G143: 272 | H143: №321 Дели 2016
A144: Компот из свежих яблок | C144: 150 | D144: 0.10 | E144: 0.10 | F144: 10.20 | G144: 42.10 | H144: № 390 Дели 2016
A145: Хлеб сельский | C145: 30 | D145: 1.5 | E145: 0.3 | F145: 14.3 | G145: 66
A146: Итого: | C146: 505 | D146: =SUM(D141:D145) -> 14.71 | E146: =SUM(E141:E145) -> 16.46 | F146: =SUM(F141:F145) -> 71.28 | G146: =SUM(G141:G145) -> 492.49
B147: ПОЛДНИК
A148: Кондитерские изделия | C148: 10 | D148: 1.00 | E148: 0.50 | F148: 7.50 | G148: 25.00
A149: крекер
A150: Кефир | C150: 100 | D150: 3.36 | E150: 2.5 | F150: 4.6 | G150: 61.8 | H150: №401Дели2010
A151: Капуста тушеная с мясом | C151: 110 | D151: 9.00 | E151: 11.00 | F151: 28.00 | G151: 248.00 | H151: №54-10М Сборник рецептур Москва
A152: Чай с сахаром и лимоном | C152: 150/4/4 | D152: 0.09 | E152: 0.01 | F152: 8.50 | G152: 34.50 | H152: №393Дели2010
A153: Хлеб пшеничный 1с | C153: 20 | D153: 1.6 | E153: 0.2 | F153: 9.8 | G153: 47
A154: Итого: | C154: 398 | D154: =SUM(D148:D153) -> 15.05 | E154: =SUM(E148:E153) -> 14.21 | F154: =SUM(F148:F153) -> 58.40 | G154: =SUM(G148:G153) -> 416.30
A155: ВСЕГО: | C155: =C135+C138+C146+C154 -> 1371 | D155: 40.26 | E155: 43.28 | F155: 179.17 | G155: 1247.95
C156: 2 НЕДЕЛЯ
A157: День 6 - ой
A158: Прием пищи | C158: Выход блюда | D158: Пищевые вещества (г) | G158: Энергетическая | H158: № рецептуры
A159: Наименование блюд | G159: ценность
D160: белки | E160: жиры | F160: угл-ды | G160: Ккал
B161: ЗАВТРАК
A162: Каша геркулесовая молочная с маслом | C162: 150/3 | D162: 5.00 | E162: 5.63 | F162: 16.50 | G162: 136.00 | H162: ТТК №5
A163: Чай с молоком,сахаром | C163: 160/4 | D163: 2.30 | E163: 2.00 | F163: 11.90 | G163: 74.80 | H163: №394Дели2010
A164: Бутерброд с сыром, маслом | C164: 25/5/3 | D164: 3.50 | E164: 5.95 | F164: 12.90 | G164: 119.60 | H164: №3Дели2010
A165: Итого: | C165: 350 | D165: =SUM(D161:D164) -> 10.80 | E165: =SUM(E161:E164) -> 13.58 | F165: =SUM(F161:F164) -> 41.30 | G165: =SUM(G161:G164) -> 330.40
A166: Фрукты свежие | C166: 85 | D166: 0.34 | E166: 0.34 | F166: 10.20 | G166: 45.00 | H166: №386Дели2016
A167: яблоко
A168: Итого: | C168: =SUM(C166:C166) -> 85 | D168: =SUM(D166) -> 0.34 | E168: =SUM(E166) -> 0.34 | F168: =SUM(F166) -> 10.20 | G168: =SUM(G166) -> 45.00
C169: 435 | D169: =D165+D168 -> 11.14 | E169: 12.30 | F169: =F165+F168 -> 51.50 | G169: 365.00
B170: ОБЕД
A171: Салат из свежей капусты | C171: 30 | D171: 0.50 | E171: 1.50 | F171: 2.80 | G171: 27.00 | H171: № 21Дели 2016
A172: Рассольник ленинградский с мясными фрикадельками, со сметаной | C172: 150/10/5 | D172: 2.67 | E172: 3.38 | F172: 17.7 | G172: 112 | H172: №82 Дели 2016
A173: Биточки куриные "Солнышко" | C173: 50 | D173: 6.40 | E173: 8.50 | F173: 5.20 | G173: 123.00 | H173: ТТК №97Д
A174: Макароны отварные | C174: 110 | D174: 4.10 | E174: 3.00 | F174: 25.00 | G174: 143.40 | H174: №218 Дели 2016
A175: Кисель | C175: 150 | F175: 8.34 | G175: 33.34 | H175: №284Партнер2014
A176: Хлеб сельский | C176: 30 | D176: 1.5 | E176: 0.3 | F176: 14.3 | G176: 66
A177: Итого: | C177: 535 | D177: =SUM(D171:D176) -> 15.17 | E177: =SUM(E171:E176) -> 16.68 | F177: 73.34 | G177: 504.74
B178: ПОЛДНИК
A179: Булочка сдобная | C179: 40 | D179: 3.04 | E179: 3.84 | F179: 17.84 | G179: 118.4 | H179: № 257 Партнер2014 г. Уфа
A180: Ряженка | C180: 100 | D180: 3.00 | E180: 2.50 | F180: 4.20 | G180: 55.60 | H180: №401Дели2010
A181: Гречка с фаршем и овощами | C181: 110 | D181: 5.50 | E181: 7.50 | F181: 24.00 | G181: 185.00 | H181: ТТК №1630 от 10.11.2021
A182: Напиток из урюка | C182: 150 | D182: 0.50 | E182: 0.03 | F182: 12.50 | G182: 52.10 | H182: ТТК №68
A183: Хлеб пшеничный 1с | C183: 20 | D183: 1.6 | E183: 0.2 | F183: 9.8 | G183: 47
A184: Итого: | C184: 420 | D184: =SUM(D179:D183) -> 13.64 | E184: =SUM(E179:E183) -> 14.07 | F184: =SUM(F179:F183) -> 68.34 | G184: =SUM(G179:G183) -> 458.10
A185: ВСЕГО: | C185: =C165+C177+C184 -> 1305 | D185: =D165+D168+D177+D184 -> 39.95 | E185: =E165+E168+E177+E184 -> 44.67 | F185: =F165+F168+F177+F184 -> 193.18 | G185: =G165+G168+G177+G184 -> 1338.24
A186: День 7 - ой
A187: Прием пищи | C187: Выход блюда | D187: Пищевые вещества (г) | G187: Энергетическая | H187: № рецептуры
A188: Наименование блюд | G188: ценность
D189: белки | E189: жиры | F189: угл-ды | G189: Ккал
B190: ЗАВТРАК
A191: Каша ячневая молочная с маслом | C191: 150/3 | D191: 7.16 | E191: 6.63 | F191: 15.15 | G191: 149.00 | H191: ТТК №8
A192: Кофейный напиток с молоком | C192: 165/7 | D192: 1.16 | E192: 1.28 | F192: 11.4 | G192: 62 | H192: №270 Партнер г. Уфа 2014
A193: Бутерброд с маслом сливочным | C193: 25/5 | D193: 1.9 | E193: 4.4 | F193: 13 | G193: 99 | H193: №1 Дели2010
A194: Итого: | C194: 355 | D194: =SUM(D190:D193) -> 10.22 | E194: =SUM(E190:E193) -> 12.31 | F194: =SUM(F190:F193) -> 39.55 | G194: =SUM(G190:G193) -> 310.00
A195: Сок | C195: 125 | D195: 0.30 | E195: 0.00 | F195: 12.00 | G195: 49.00 | H195: №418Дели2016
A196: яблочный
A197: Итого: | C197: 125 | D197: =SUM(D195:D196) -> 0.30 | E197: =SUM(E195:E196) -> 0.00 | F197: =SUM(F195:F196) -> 12.00 | G197: =SUM(G195:G196) -> 49.00
C198: 480 | D198: =D194+D197 -> 10.52 | E198: =E194+E197 -> 12.31 | F198: 51.55 | G198: 359.00
B199: ОБЕД
A200: Огурцы свежие порционно | C200: 30 | D200: 0.21 | E200: 0.03 | F200: 0.57 | G200: 3.39 | H200: стр563,сб1996
... 129 more rows

Sheet кал1-3
C1: Калорийность в разрезе
D2: ДОУ от 1 до 3 лет
A4: норма с отклонениями | B4: 1100-1500 | C4: 35,9-37,8-39,7 | D4: 40,18-42,3-44,4 | E4: 173,56-182,7-191,8 | F4: 1197-1260-1323
B5: Объемы порций | C5: Белки | D5: Жиры | E5: Угл-ды | F5: Энергетическая ценность
A6: 1 | B6: 1434.50 | C6: 37.62 | D6: 42.66 | E6: 189.53 | F6: 1296.84
A7: 2 | B7: 1364.00 | C7: 36.00 | D7: 42.67 | E7: 175.52 | F7: 1250.90
A8: 3 | B8: 1450.00 | C8: 38.47 | D8: 41.80 | E8: 189.34 | F8: 1293.53
A9: 4 | B9: 1363.00 | C9: 37.18 | D9: 42.66 | E9: 182.95 | F9: 1257.94
A10: 5 | B10: 1371.00 | C10: 40.26 | D10: 43.28 | E10: 179.17 | F10: 1247.95
A11: 6 | B11: 1305.00 | C11: 39.95 | D11: 44.67 | E11: 193.18 | F11: 1338.24
A12: 7 | B12: 1413.00 | C12: 37.39 | D12: 41.47 | E12: 180.75 | F12: 1241.99
A13: 8 | B13: 1391.00 | C13: 39.92 | D13: 43.37 | E13: 176.87 | F13: 1253.30
A14: 9 | B14: 1402.00 | C14: 36.98 | D14: 43.80 | E14: 180.18 | F14: 1283.05
A15: 10 | B15: 1446.00 | C15: 41.15 | D15: 44.68 | E15: 195.45 | F15: 1346.10
A17: Всего | B17: 13939.50 | C17: 384.92 | D17: 431.05 | E17: 1842.94 | F17: 12809.84
A18: В среднем | B18: 1393.95 | C18: 38.49 | D18: 43.10 | E18: 184.29 | F18: 1280.98

Sheet кал3-7
C5: Калорийность
D6: ДОУ от 3 до 7 лет
A7: норма с отклонениями | B7: 1350-1800 | C7: 46,17-48,6-51,03 | D7: 51,3-54-56,7 | E7: 223,154-234,9-246,644 | F7: 1539-1620-1701
B8: Объемы порций | C8: Белки | D8: Жиры | E8: Угл-ды | F8: Энергетическая ценность
A9: 1 | B9: 1738.50 | C9: 48.51 | D9: 52.97 | E9: 240.07 | F9: 1636.10
A10: 2 | B10: 1701.50 | C10: 48.17 | D10: 54.56 | E10: 232.03 | F10: 1610.60
A11: 3 | B11: 1768.50 | C11: 49.88 | D11: 53.26 | E11: 236.41 | F11: 1613.80
A12: 4 | B12: 1636.50 | C12: 46.87 | D12: 55.67 | E12: 231.48 | F12: 1605.60
A13: 5 | B13: 1631.50 | C13: 49.50 | D13: 53.31 | E13: 234.36 | F13: 1633.80
A14: 6 | B14: 1685.50 | C14: 49.07 | D14: 55.47 | E14: 237.89 | F14: 1652.50
A15: 7 | B15: 1675.50 | C15: 48.87 | D15: 51.32 | E15: 236.37 | F15: 1605.90
A16: 8 | B16: 1647.50 | C16: 49.81 | D16: 54.09 | E16: 225.93 | F16: 1592.30
A17: 9 | B17: 1710.50 | C17: 47.89 | D17: 56.30 | E17: 244.00 | F17: 1689.30
A18: 10 | B18: 1706.50 | C18: 49.17 | D18: 54.54 | E18: 235.71 | F18: 1653.00
A20: Всего | B20: 16902.00 | C20: 487.72 | D20: 541.50 | E20: 2354.25 | F20: 16292.90
A21: В среднем | B21: 1690.20 | C21: 48.77 | D21: 54.15 | E21: 235.42 | F21: 1629.29

Sheet свод1-3
B1: Расход продуктов ДОУ
D2: от 1 до 3 лет | K2: нетто
A3: Наименов. прод. | B3: 1 | C3: 2 | D3: 3 | E3: 4 | F3: 5 | G3: 6 | H3: 7 | I3: 8 | J3: 9 | K3: 10 | L3: Кол-во | M3: Среднее
A5: Сахар | B5: 21.40 | C5: 23.35 | D5: 22.10 | E5: 22.35 | F5: 19.05 | G5: 21.90 | H5: 22.35 | I5: 15.55 | J5: 23.49 | K5: 17.25 | L5: 208.79 | M5: 20.88
A6: Заварка | B6: 0.20 | C6: 0.30 | D6: 0.20 | E6: 0.20 | F6: 0.30 | G6: 0.20 | H6: 0.30 | I6: 0.20 | J6: 0.20 | K6: 0.30 | L6: 2.40 | M6: 0.24
A7: Яйцо | B7: 0.80 | C7: 5.70 | D7: 24.00 | E7: 5.72 | F7: 0.00 | G7: 6.40 | H7: 5.72 | I7: 2.00 | J7: 12.20 | K7: 98.62 | L7: 161.16 | M7: 16.12
A8: Дрожжи сухие | B8: 0.16 | C8: 0.00 | D8: 0.20 | E8: 0.00 | F8: 0.00 | G8: 0.30 | H8: 0.00 | I8: 0.16 | J8: 0.00 | K8: 0.16 | L8: 0.98 | M8: 0.10
A9: Батон нарезной | B9: 25.00 | C9: 25.00 | D9: 25.00 | E9: 25.00 | F9: 25.00 | G9: 25.00 | H9: 25.00 | I9: 25.00 | J9: 25.00 | K9: 25.00 | L9: 250.00 | M9: 25.00
A10: Хлеб пшеничный 1с | B10: 24.00 | C10: 29.00 | D10: 20.00 | E10: 20.00 | F10: 20.00 | G10: 20.00 | H10: 32.00 | I10: 20.00 | J10: 20.00 | K10: 20.00 | L10: 225.00 | M10: 22.50
A11: Хлеб сельский | B11: 30.00 | C11: 30.00 | D11: 30.00 | E11: 30.00 | F11: 30.00 | G11: 30.00 | H11: 30.00 | I11: 30.00 | J11: 30.00 | K11: 30.00 | L11: 300.00 | M11: 30.00
A12: Мука пшеничная | B12: 28.70 | C12: 0.00 | D12: 28.21 | E12: 0.00 | F12: 1.00 | G12: 24.00 | H12: 1.00 | I12: 21.30 | J12: 0.00 | K12: 19.85 | L12: 124.06 | M12: 12.41
A13: Кисель-концентрат | B13: 17.50 | C13: 0.00 | D13: 0.00 | E13: 17.50 | F13: 0.00 | G13: 17.50 | H13: 0.00 | I13: 0.00 | J13: 17.50 | K13: 0.00 | L13: 70.00 | M13: 7.00
A14: Макаронные изделия | B14: 0.00 | C14: 0.00 | D14: 38.50 | E14: 0.00 | F14: 0.00 | G14: 38.50 | H14: 0.00 | I14: 0.00 | J14: 0.00 | K14: 0.00 | L14: 77.00 | M14: 7.70
A15: Вермишель | B15: 6.00 | C15: 0.00 | D15: 0.00 | E15: 0.00 | F15: 0.00 | G15: 0.00 | H15: 0.00 | I15: 14.00 | J15: 0.00 | K15: 0.00 | L15: 20.00 | M15: 2.00
A16: Крупа рисовая | B16: 0.00 | C16: 11.00 | D16: 9.00 | E16: 9.78 | F16: 31.28 | G16: 0.00 | H16: 9.78 | I16: 27.70 | J16: 0.00 | K16: 31.90 | L16: 130.44 | M16: 13.04
A17: Крупа кукурузная | B17: 0.00 | C17: 0.00 | D17: 0.00 | E17: 0.00 | F17: 0.00 | G17: 0.00 | H17: 0.00 | I17: 0.00 | J17: 0.00 | K17: 0.00 | L17: 0.00 | M17: 0.00
A18: Крупа манная | B18: 17.00 | C18: 7.70 | D18: 0.00 | E18: 0.00 | F18: 0.00 | G18: 0.00 | H18: 0.00 | I18: 0.00 | J18: 8.95 | K18: 0.00 | L18: 33.65 | M18: 3.37
A19: Горох | B19: 0.00 | C19: 0.00 | D19: 0.00 | E19: 0.00 | F19: 0.00 | G19: 0.00 | H19: 15.01 | I19: 0.00 | J19: 0.00 | K19: 0.00 | L19: 15.01 | M19: 1.50
A20: Крупа пшенная | B20: 0.00 | C20: 8.00 | D20: 0.00 | E20: 23.00 | F20: 0.00 | G20: 0.00 | H20: 0.00 | I20: 0.00 | J20: 0.00 | K20: 23.00 | L20: 54.00 | M20: 5.40
A21: Крупа ячневая | B21: 0.00 | C21: 0.00 | D21: 0.00 | E21: 0.00 | F21: 0.00 | G21: 0.00 | H21: 19.00 | I21: 0.00 | J21: 0.00 | K21: 0.00 | L21: 19.00 | M21: 1.90
A22: Полба | B22: 0.00 | C22: 0.00 | D22: 0.00 | E22: 0.00 | F22: 19.00 | G22: 0.00 | H22: 0.00 | I22: 0.00 | J22: 19.00 | K22: 0.00 | L22: 38.00 | M22: 3.80
A23: Крупа перловая | B23: 0.00 | C23: 0.00 | D23: 0.00 | E23: 0.00 | F23: 0.00 | G23: 6.00 | H23: 0.00 | I23: 0.00 | J23: 0.00 | K23: 0.00 | L23: 6.00 | M23: 0.60
A24: Крупа геркулесовая | B24: 0.00 | C24: 0.00 | D24: 19.00 | E24: 0.00 | F24: 0.00 | G24: 19.00 | H24: 0.00 | I24: 0.00 | J24: 0.00 | K24: 0.00 | L24: 38.00 | M24: 3.80
A25: Крупа пшеничная | B25: 0.00 | C25: 0.00 | D25: 0.00 | E25: 0.00 | F25: 0.00 | G25: 0.00 | H25: 0.00 | I25: 0.00 | J25: 0.00 | K25: 0.00 | L25: 0.00 | M25: 0.00
A26: Крупа гречневая | B26: 27.50 | C26: 0.00 | D26: 0.00 | E26: 0.00 | F26: 0.00 | G26: 21.00 | H26: 0.00 | I26: 0.00 | J26: 9.00 | K26: 0.00 | L26: 57.50 | M26: 5.75
A27: Картофель | B27: 118.30 | C27: 124.43 | D27: 45.00 | E27: 105.10 | F27: 25.90 | G27: 45.00 | H27: 153.90 | I27: 45.30 | J27: 139.43 | K27: 30.00 | L27: 832.36 | M27: 83.24
A28: Морковь | B28: 15.33 | C28: 6.00 | D28: 22.90 | E28: 6.00 | F28: 21.70 | G28: 28.50 | H28: 6.00 | I28: 37.60 | J28: 6.00 | K28: 20.50 | L28: 170.53 | M28: 17.05
A29: Лук репчатый | B29: 14.60 | C29: 7.00 | D29: 21.82 | E29: 17.00 | F29: 19.38 | G29: 16.19 | H29: 14.90 | I29: 25.40 | J29: 15.25 | K29: 17.90 | L29: 169.44 | M29: 16.94
A30: Свекла | B30: 0.00 | C30: 0.00 | D30: 0.00 | E30: 0.00 | F30: 38.30 | G30: 0.00 | H30: 0.00 | I30: 24.00 | J30: 0.00 | K30: 0.00 | L30: 62.30 | M30: 6.23
A31: Капуста свежая | B31: 26.70 | C31: 12.00 | D31: 137.12 | E31: 30.00 | F31: 84.04 | G31: 26.70 | H31: 0.00 | I31: 36.40 | J31: 18.20 | K31: 12.00 | L31: 383.16 | M31: 38.32
A32: Икра кабачковая | B32: 0.00 | C32: 0.00 | D32: 0.00 | E32: 0.00 | F32: 0.00 | G32: 0.00 | H32: 0.00 | I32: 0.00 | J32: 0.00 | K32: 0.00 | L32: 0.00 | M32: 0.00
A33: Огурцы соленые | B33: 0.00 | C33: 0.00 | D33: 0.00 | E33: 0.00 | F33: 0.00 | G33: 9.00 | H33: 0.00 | I33: 0.00 | J33: 0.00 | K33: 0.00 | L33: 9.00 | M33: 0.90
A34: Помидоры свежие | B34: 0.00 | C34: 0.00 | D34: 30.00 | E34: 0.00 | F34: 0.00 | G34: 0.00 | H34: 0.00 | I34: 30.00 | J34: 0.00 | K34: 0.00 | L34: 60.00 | M34: 6.00
A35: Огурцы свежие | B35: 0.00 | C35: 30.00 | D35: 0.00 | E35: 28.80 | F35: 30.00 | G35: 0.00 | H35: 30.00 | I35: 0.00 | J35: 10.80 | K35: 28.80 | L35: 158.40 | M35: 15.84
A36: перец | B36: 0.00 | C36: 0.00 | D36: 0.00 | E36: 0.00 | F36: 0.00 | G36: 0.00 | H36: 0.00 | I36: 0.00 | J36: 0.00 | K36: 0.00 | L36: 0.00 | M36: 0.00
A37: Томат-паста | B37: 0.00 | C37: 0.00 | D37: 4.00 | E37: 0.00 | F37: 0.00 | G37: 0.00 | H37: 0.00 | I37: 0.00 | J37: 0.00 | K37: 2.00 | L37: 6.00 | M37: 0.60
A38: Масло сливочное | B38: 10.50 | C38: 9.00 | D38: 19.80 | E38: 8.79 | F38: 11.00 | G38: 11.80 | H38: 14.49 | I38: 8.40 | J38: 11.00 | K38: 14.60 | L38: 119.38 | M38: 11.94
A39: Масло растительное | B39: 13.00 | C39: 3.00 | D39: 2.58 | E39: 8.20 | F39: 7.00 | G39: 10.20 | H39: 2.00 | I39: 8.10 | J39: 4.15 | K39: 9.60 | L39: 67.83 | M39: 6.78
A40: Фрукты свежие | B40: 0.00 | C40: 85.00 | D40: 0.00 | E40: 85.00 | F40: 0.00 | G40: 85.00 | H40: 0.00 | I40: 85.00 | J40: 0.00 | K40: 85.00 | L40: 425.00 | M40: 42.50
A41: Яблоки | B41: 0.00 | C41: 30.00 | D41: 0.00 | E41: 0.00 | F41: 30.00 | G41: 0.00 | H41: 30.00 | I41: 0.00 | J41: 0.00 | K41: 0.00 | L41: 90.00 | M41: 9.00
A42: крыжовник зам. | B42: 0.00 | C42: 0.00 | D42: 0.00 | E42: 0.00 | F42: 0.00 | G42: 0.00 | H42: 0.00 | I42: 0.00 | J42: 0.00 | K42: 0.00 | L42: 0.00 | M42: 0.00
A43: Лимон | B43: 0.00 | C43: 4.00 | D43: 0.00 | E43: 0.00 | F43: 4.00 | G43: 0.00 | H43: 4.00 | I43: 0.00 | J43: 0.00 | K43: 4.00 | L43: 16.00 | M43: 1.60
A44: Ягодная смесь зам. | B44: 0.00 | C44: 0.00 | D44: 0.00 | E44: 0.00 | F44: 0.00 | G44: 0.00 | H44: 0.00 | I44: 0.00 | J44: 0.00 | K44: 0.00 | L44: 0.00 | M44: 0.00
A45: Сок | B45: 125.00 | C45: 0.00 | D45: 125.00 | E45: 0.00 | F45: 125.00 | G45: 0.00 | H45: 125.00 | I45: 0.00 | J45: 125.00 | K45: 0.00 | L45: 625.00 | M45: 62.50
A46: Фруктовое пюре | B46: 0.00 | C46: 0.00 | D46: 0.00 | E46: 0.00 | F46: 0.00 | G46: 0.00 | H46: 0.00 | I46: 0.00 | J46: 0.00 | K46: 0.00 | L46: 0.00 | M46: 0.00
A47: Сухофрукты | B47: 0.00 | C47: 0.00 | D47: 15.00 | E47: 0.00 | F47: 0.00 | G47: 0.00 | H47: 0.00 | I47: 0.00 | J47: 0.00 | K47: 15.00 | L47: 30.00 | M47: 3.00
A48: Урюк | B48: 12.50 | C48: 0.00 | D48: 0.00 | E48: 0.00 | F48: 0.00 | G48: 12.50 | H48: 0.00 | I48: 12.50 | J48: 0.00 | K48: 0.00 | L48: 37.50 | M48: 3.75
A49: повидло фруктовое | B49: 0.00 | C49: 0.00 | D49: 0.00 | E49: 10.00 | F49: 0.00 | G49: 0.00 | H49: 10.00 | I49: 16.00 | J49: 0.00 | K49: 0.00 | L49: 36.00 | M49: 3.60
A50: Шиповник порошок | B50: 0.00 | C50: 0.00 | D50: 2.25 | E50: 0.00 | F50: 0.00 | G50: 0.00 | H50: 0.00 | I50: 2.25 | J50: 0.00 | K50: 0.00 | L50: 4.50 | M50: 0.45
A51: Молоко | B51: 75.00 | C51: 275.70 | D51: 117.00 | E51: 240.00 | F51: 135.00 | G51: 120.60 | H51: 240.00 | I51: 136.00 | J51: 165.70 | K51: 277.20 | L51: 1782.20 | M51: 178.22
A52: Кефир | B52: 0.00 | C52: 0.00 | D52: 0.00 | E52: 0.00 | F52: 100.00 | G52: 0.00 | H52: 0.00 | I52: 0.00 | J52: 100.00 | K52: 0.00 | L52: 200.00 | M52: 20.00
A53: Ряженка | B53: 0.00 | C53: 0.00 | D53: 100.00 | E53: 0.00 | F53: 0.00 | G53: 100.00 | H53: 0.00 | I53: 0.00 | J53: 0.00 | K53: 0.00 | L53: 200.00 | M53: 20.00
A54: Катык | B54: 100.00 | C54: 0.00 | D54: 0.00 | E54: 0.00 | F54: 0.00 | G54: 0.00 | H54: 0.00 | I54: 100.00 | J54: 0.00 | K54: 0.00 | L54: 200.00 | M54: 20.00
A55: Молоко сгущенное | B55: 0.00 | C55: 10.00 | D55: 0.00 | E55: 0.00 | F55: 0.00 | G55: 0.00 | H55: 0.00 | I55: 0.00 | J55: 10.00 | K55: 0.00 | L55: 20.00 | M55: 2.00
A56: Сметана | B56: 0.00 | C56: 14.50 | D56: 5.13 | E56: 7.88 | F56: 5.00 | G56: 5.00 | H56: 6.63 | I56: 5.00 | J56: 9.50 | K56: 13.23 | L56: 71.87 | M56: 7.19
A57: Творог | B57: 0.00 | C57: 71.33 | D57: 0.00 | E57: 71.50 | F57: 0.00 | G57: 0.00 | H57: 71.50 | I57: 0.00 | J57: 71.33 | K57: 0.00 | L57: 285.66 | M57: 28.57
A58: Говядина | B58: 0.00 | C58: 0.00 | D58: 0.00 | E58: 34.00 | F58: 0.00 | G58: 0.00 | H58: 0.00 | I58: 33.80 | J58: 0.00 | K58: 0.00 | L58: 67.80 | M58: 6.78
A59: Фарш из говядины | B59: 34.30 | C59: 11.40 | D59: 20.00 | E59: 0.00 | F59: 38.50 | G59: 47.80 | H59: 50.20 | I59: 0.00 | J59: 0.00 | K59: 0.00 | L59: 202.20 | M59: 20.22
A60: Цыплята | B60: 42.70 | C60: 36.40 | D60: 14.70 | E60: 0.00 | F60: 69.95 | G60: 39.10 | H60: 14.70 | I60: 31.50 | J60: 14.70 | K60: 0.00 | L60: 263.75 | M60: 26.38
A61: Индейка филе | B61: 0.00 | C61: 0.00 | D61: 0.00 | E61: 0.00 | F61: 0.00 | G61: 0.00 | H61: 0.00 | I61: 0.00 | J61: 0.00 | K61: 0.00 | L61: 0.00 | M61: 0.00
A62: куриная грудка | B62: 0.00 | C62: 0.00 | D62: 0.00 | E62: 0.00 | F62: 0.00 | G62: 0.00 | H62: 0.00 | I62: 0.00 | J62: 0.00 | K62: 56.90 | L62: 56.90 | M62: 5.69
A63: Сыр | B63: 0.00 | C63: 5.00 | D63: 0.00 | E63: 5.00 | F63: 0.00 | G63: 5.00 | H63: 0.00 | I63: 5.00 | J63: 0.00 | K63: 19.16 | L63: 39.16 | M63: 3.92
A64: рыба филе | B64: 0.00 | C64: 0.00 | D64: 0.00 | E64: 0.00 | F64: 0.00 | G64: 0.00 | H64: 0.00 | I64: 0.00 | J64: 37.50 | K64: 0.00 | L64: 37.50 | M64: 3.75
A65: Кофейный напиток | B65: 0.00 | C65: 0.00 | D65: 0.00 | E65: 1.30 | F65: 0.00 | G65: 0.00 | H65: 1.30 | I65: 0.00 | J65: 0.00 | K65: 1.30 | L65: 3.90 | M65: 0.39
A66: Какао-порошок | B66: 0.00 | C66: 1.30 | D66: 0.00 | E66: 0.00 | F66: 1.30 | G66: 0.00 | H66: 0.00 | I66: 0.00 | J66: 1.30 | K66: 0.00 | L66: 3.90 | M66: 0.39
A67: печенье КП | B67: 0.00 | C67: 0.00 | D67: 0.00 | E67: 0.00 | F67: 0.00 | G67: 0.00 | H67: 0.00 | I67: 0.00 | J67: 0.00 | K67: 0.00 | L67: 0.00 | M67: 0.00
A68: крекер | B68: 0.00 | C68: 0.00 | D68: 0.00 | E68: 0.00 | F68: 10.00 | G68: 0.00 | H68: 0.00 | I68: 0.00 | J68: 10.00 | K68: 0.00 | L68: 20.00 | M68: 2.00
A69: Соль | B69: 2.90 | C69: 2.00 | D69: 3.44 | E69: 1.60 | F69: 2.30 | G69: 3.40 | H69: 2.50 | I69: 5.30 | J69: 3.33 | K69: 3.28 | L69: 30.05 | M69: 3.01
A70: печенье КП | B70: 0.00 | C70: 0.00 | D70: 0.00 | E70: 0.00 | F70: 0.00 | G70: 0.00 | H70: 0.00 | I70: 0.00 | J70: 0.00 | K70: 0.00 | L70: 0.00 | M70: 0.00
A71: Сухари панировочные | B71: 0.00 | C71: 5.00 | D71: 0.00 | E71: 0.00 | F71: 0.00 | G71: 4.00 | H71: 1.70 | I71: 0.00 | J71: 3.75 | K71: 0.00 | L71: 14.45 | M71: 1.45
A72: вафли | B72: 0.00 | C72: 0.00 | D72: 0.00 | E72: 21.00 | F72: 0.00 | G72: 0.00 | H72: 0.00 | I72: 0.00 | J72: 0.00 | K72: 0.00 | L72: 21.00 | M72: 2.10
A73: Крупы, бобовые | B73: 44.50 | C73: 26.70 | D73: 28.00 | E73: 32.78 | F73: 50.28 | G73: 46.00 | H73: 43.79 | I73: 27.70 | J73: 36.95 | K73: 54.90 | L73: 391.60 | M73: 39.16
A74: Овощи разные | B74: 56.63 | C74: 55.00 | D74: 215.84 | E74: 81.80 | F74: 193.42 | G74: 80.39 | H74: 50.90 | I74: 153.40 | J74: 50.25 | K74: 81.20 | L74: 1018.83 | M74: 101.88
A75: Фрукты | B75: 0.00 | C75: 119.00 | D75: 0.00 | E75: 95.00 | F75: 34.00 | G75: 85.00 | H75: 44.00 | I75: 101.00 | J75: 0.00 | K75: 89.00 | L75: 567.00 | M75: 56.70
A76: Фрукты сухие | B76: 12.50 | C76: 0.00 | D76: 17.25 | E76: 0.00 | F76: 0.00 | G76: 12.50 | H76: 0.00 | I76: 14.75 | J76: 0.00 | K76: 15.00 | L76: 72.00 | M76: 7.20
A77: Молочные прод. | B77: 175.00 | C77: 285.70 | D77: 217.00 | E77: 240.00 | F77: 235.00 | G77: 220.60 | H77: 240.00 | I77: 236.00 | J77: 275.70 | K77: 277.20 | L77: 2402.20 | M77: 240.22
A78: Говядина | B78: 34.30 | C78: 11.40 | D78: 20.00 | E78: 34.00 | F78: 38.50 | G78: 47.80 | H78: 50.20 | I78: 33.80 | J78: 0.00 | K78: 0.00 | L78: 270.00 | M78: 27.00
A79: птица | B79: 42.70 | C79: 36.40 | D79: 14.70 | E79: 0.00 | F79: 69.95 | G79: 39.10 | H79: 14.70 | I79: 31.50 | J79: 14.70 | K79: 56.90 | L79: 320.65 | M79: 32.07
A80: Макаронные изделия | B80: 6.00 | C80: 0.00 | D80: 38.50 | E80: 0.00 | F80: 0.00 | G80: 38.50 | H80: 0.00 | I80: 14.00 | J80: 0.00 | K80: 0.00 | L80: 97.00 | M80: 9.70
A81: Хлеб пшеничный | B81: 49.00 | C81: 54.00 | D81: 45.00 | E81: 45.00 | F81: 45.00 | G81: 45.00 | H81: 57.00 | I81: 45.00 | J81: 45.00 | K81: 45.00 | L81: 475.00 | M81: 47.50
A82: Кондитерские изделия | B82: 0.00 | C82: 0.00 | D82: 0.00 | E82: 21.00 | F82: 10.00 | G82: 0.00 | H82: 0.00 | I82: 0.00 | J82: 10.00 | K82: 0.00 | L82: 41.00 | M82: 4.10
A83: Примечание: расход хлеба пшеничного с учетом расхода сухарей панировочных
B84: Расход продуктов ДОУ
D85: от 1 до 3 лет | K85: брутто
A87: Наименов. прод. | B87: 1 | C87: 2 | D87: 3 | E87: 4 | F87: 5 | G87: 6 | H87: 7 | I87: 8 | J87: 9 | K87: 10 | L87: Кол-во | M87: Среднее
A89: Сахар | B89: 21.40 | C89: 23.35 | D89: 22.10 | E89: 22.35 | F89: 19.05 | G89: 21.90 | H89: 22.35 | I89: 15.55 | J89: 23.49 | K89: 17.25 | L89: 208.79 | M89: 20.88
A90: Заварка | B90: 0.20 | C90: 0.30 | D90: 0.20 | E90: 0.20 | F90: 0.30 | G90: 0.20 | H90: 0.30 | I90: 0.20 | J90: 0.20 | K90: 0.30 | L90: 2.40 | M90: 0.24
A91: Яйцо | B91: 0.80 | C91: 5.70 | D91: 24.00 | E91: 5.72 | F91: 0.00 | G91: 6.40 | H91: 5.72 | I91: 2.00 | J91: 12.20 | K91: 98.62 | L91: 161.16 | M91: 16.12
A92: Дрожжи сухие | B92: 0.16 | C92: 0.00 | D92: 0.20 | E92: 0.00 | F92: 0.00 | G92: 0.30 | H92: 0.00 | I92: 0.16 | J92: 0.00 | K92: 0.16 | L92: 0.98 | M92: 0.10
A93: Батон нарезной | B93: 25.00 | C93: 25.00 | D93: 25.00 | E93: 25.00 | F93: 25.00 | G93: 25.00 | H93: 25.00 | I93: 25.00 | J93: 25.00 | K93: 25.00 | L93: 250.00 | M93: 25.00
A94: Хлеб пшеничный 1с | B94: 24.00 | C94: 29.00 | D94: 20.00 | E94: 20.00 | F94: 20.00 | G94: 20.00 | H94: 34.40 | I94: 20.00 | J94: 20.00 | K94: 20.00 | L94: 227.40 | M94: 22.74
A95: Хлеб сельский | B95: 30.00 | C95: 30.00 | D95: 30.00 | E95: 30.00 | F95: 30.00 | G95: 30.00 | H95: 30.00 | I95: 30.00 | J95: 30.00 | K95: 30.00 | L95: 300.00 | M95: 30.00
A96: Мука пшеничная | B96: 28.70 | C96: 0.00 | D96: 28.21 | E96: 0.00 | F96: 1.00 | G96: 24.00 | H96: 1.00 | I96: 21.30 | J96: 0.00 | K96: 19.85 | L96: 124.06 | M96: 12.41
A97: Кисель-концентрат | B97: 17.50 | C97: 0.00 | D97: 0.00 | E97: 17.50 | F97: 0.00 | G97: 17.50 | H97: 0.00 | I97: 0.00 | J97: 17.50 | K97: 0.00 | L97: 70.00 | M97: 7.00
A98: Макаронные изделия | B98: 0.00 | C98: 0.00 | D98: 38.50 | E98: 0.00 | F98: 0.00 | G98: 38.50 | H98: 0.00 | I98: 0.00 | J98: 0.00 | K98: 0.00 | L98: 77.00 | M98: 7.70
A99: Вермишель | B99: 6.00 | C99: 0.00 | D99: 0.00 | E99: 0.00 | F99: 0.00 | G99: 0.00 | H99: 0.00 | I99: 14.00 | J99: 0.00 | K99: 0.00 | L99: 20.00 | M99: 2.00
A100: Крупа рисовая | B100: 0.00 | C100: 11.00 | D100: 9.00 | E100: 9.78 | F100: 31.28 | G100: 0.00 | H100: 9.78 | I100: 27.70 | J100: 0.00 | K100: 31.90 | L100: 130.44 | M100: 13.04
A101: Крупа кукурузная | B101: 0.00 | C101: 0.00 | D101: 0.00 | E101: 0.00 | F101: 0.00 | G101: 0.00 | H101: 0.00 | I101: 0.00 | J101: 0.00 | K101: 0.00 | L101: 0.00 | M101: 0.00
A102: Крупа манная | B102: 17.00 | C102: 7.70 | D102: 0.00 | E102: 0.00 | F102: 0.00 | G102: 0.00 | H102: 0.00 | I102: 0.00 | J102: 8.95 | K102: 0.00 | L102: 33.65 | M102: 3.37
A103: Горох | B103: 0.00 | C103: 0.00 | D103: 0.00 | E103: 0.00 | F103: 0.00 | G103: 0.00 | H103: 15.20 | I103: 0.00 | J103: 0.00 | K103: 0.00 | L103: 15.20 | M103: 1.52
A104: Крупа пшенная | B104: 0.00 | C104: 8.00 | D104: 0.00 | E104: 23.00 | F104: 0.00 | G104: 0.00 | H104: 0.00 | I104: 0.00 | J104: 0.00 | K104: 23.00 | L104: 54.00 | M104: 5.40
A105: Крупа ячневая | B105: 0.00 | C105: 0.00 | D105: 0.00 | E105: 0.00 | F105: 0.00 | G105: 0.00 | H105: 19.00 | I105: 0.00 | J105: 0.00 | K105: 0.00 | L105: 19.00 | M105: 1.90
A106: Полба | B106: 0.00 | C106: 0.00 | D106: 0.00 | E106: 0.00 | F106: 19.00 | G106: 0.00 | H106: 0.00 | I106: 0.00 | J106: 19.00 | K106: 0.00 | L106: 38.00 | M106: 3.80
A107: Крупа перловая | B107: 0.00 | C107: 0.00 | D107: 0.00 | E107: 0.00 | F107: 0.00 | G107: 6.00 | H107: 0.00 | I107: 0.00 | J107: 0.00 | K107: 0.00 | L107: 6.00 | M107: 0.60
A108: Крупа геркулесовая | B108: 0.00 | C108: 0.00 | D108: 19.00 | E108: 0.00 | F108: 0.00 | G108: 19.00 | H108: 0.00 | I108: 0.00 | J108: 0.00 | K108: 0.00 | L108: 38.00 | M108: 3.80
A109: Крупа пшеничная | B109: 0.00 | C109: 0.00 | D109: 0.00 | E109: 0.00 | F109: 0.00 | G109: 0.00 | H109: 0.00 | I109: 0.00 | J109: 0.00 | K109: 0.00 | L109: 0.00 | M109: 0.00
A110: Крупа гречневая | B110: 27.50 | C110: 0.00 | D110: 0.00 | E110: 0.00 | F110: 0.00 | G110: 21.00 | H110: 0.00 | I110: 0.00 | J110: 9.00 | K110: 0.00 | L110: 57.50 | M110: 5.75
A111: Картофель | B111: 197.56 | C111: 207.79 | D111: 75.15 | E111: 175.52 | F111: 43.25 | G111: 75.15 | H111: 228.10 | I111: 75.65 | J111: 232.84 | K111: 50.10 | L111: 1361.12 | M111: 136.11
A112: Морковь | B112: 20.38 | C112: 7.98 | D112: 30.46 | E112: 7.98 | F112: 28.86 | G112: 37.91 | H112: 7.98 | I112: 49.97 | J112: 7.98 | K112: 27.26 | L112: 226.75 | M112: 22.68
A113: Лук репчатый | B113: 17.34 | C113: 8.33 | D113: 25.97 | E113: 20.24 | F113: 23.07 | G113: 19.33 | H113: 17.74 | I113: 30.21 | J113: 18.14 | K113: 21.31 | L113: 201.68 | M113: 20.17
A114: Свекла | B114: 0.00 | C114: 0.00 | D114: 0.00 | E114: 0.00 | F114: 52.08 | G114: 0.00 | H114: 0.00 | I114: 32.64 | J114: 0.00 | K114: 0.00 | L114: 84.72 | M114: 8.47
A115: Капуста свежая | B115: 33.38 | C115: 15.00 | D115: 171.40 | E115: 37.50 | F115: 105.05 | G115: 33.38 | H115: 0.00 | I115: 45.50 | J115: 22.75 | K115: 15.00 | L115: 478.96 | M115: 47.90
A116: Икра кабачковая | B116: 0.00 | C116: 0.00 | D116: 0.00 | E116: 0.00 | F116: 0.00 | G116: 0.00 | H116: 0.00 | I116: 0.00 | J116: 0.00 | K116: 0.00 | L116: 0.00 | M116: 0.00
A117: Огурцы соленые | B117: 0.00 | C117: 0.00 | D117: 0.00 | E117: 0.00 | F117: 0.00 | G117: 16.36 | H117: 0.00 | I117: 0.00 | J117: 0.00 | K117: 0.00 | L117: 16.36 | M117: 1.64
A118: Помидоры свежие | B118: 0.00 | C118: 0.00 | D118: 30.60 | E118: 0.00 | F118: 0.00 | G118: 0.00 | H118: 0.00 | I118: 30.60 | J118: 0.00 | K118: 0.00 | L118: 61.20 | M118: 6.12
A119: Огурцы свежие | B119: 0.00 | C119: 30.60 | D119: 0.00 | E119: 29.38 | F119: 30.60 | G119: 0.00 | H119: 30.60 | I119: 0.00 | J119: 11.02 | K119: 29.38 | L119: 161.58 | M119: 16.16
A120: перец | B120: 0.00 | C120: 0.00 | D120: 0.00 | E120: 0.00 | F120: 0.00 | G120: 0.00 | H120: 0.00 | I120: 0.00 | J120: 0.00 | K120: 0.00 | L120: 0.00 | M120: 0.00
A121: Томат-паста | B121: 0.00 | C121: 0.00 | D121: 4.00 | E121: 0.00 | F121: 0.00 | G121: 0.00 | H121: 0.00 | I121: 0.00 | J121: 0.00 | K121: 2.00 | L121: 6.00 | M121: 0.60
A122: Масло сливочное | B122: 10.50 | C122: 9.00 | D122: 19.80 | E122: 8.79 | F122: 11.00 | G122: 11.80 | H122: 14.49 | I122: 8.40 | J122: 11.00 | K122: 14.60 | L122: 119.38 | M122: 11.94
A123: Масло растительное | B123: 13.00 | C123: 3.00 | D123: 2.58 | E123: 8.20 | F123: 7.00 | G123: 10.20 | H123: 2.00 | I123: 8.10 | J123: 4.15 | K123: 9.60 | L123: 67.83 | M123: 6.78
A124: Фрукты свежие | B124: 0.00 | C124: 96.90 | D124: 0.00 | E124: 96.90 | F124: 0.00 | G124: 96.90 | H124: 0.00 | I124: 96.90 | J124: 0.00 | K124: 96.90 | L124: 484.50 | M124: 48.45
A125: Яблоки | B125: 0.00 | C125: 34.00 | D125: 0.00 | E125: 0.00 | F125: 34.00 | G125: 0.00 | H125: 34.00 | I125: 0.00 | J125: 0.00 | K125: 0.00 | L125: 102.00 | M125: 10.20
A126: крыжовник зам. | B126: 0.00 | C126: 0.00 | D126: 0.00 | E126: 0.00 | F126: 0.00 | G126: 0.00 | H126: 0.00 | I126: 0.00 | J126: 0.00 | K126: 0.00 | L126: 0.00 | M126: 0.00
A127: Лимон | B127: 0.00 | C127: 4.10 | D127: 0.00 | E127: 0.00 | F127: 4.10 | G127: 0.00 | H127: 4.10 | I127: 0.00 | J127: 0.00 | K127: 4.10 | L127: 16.40 | M127: 1.64
A128: Ягодная смесь зам. | B128: 0.00 | C128: 0.00 | D128: 0.00 | E128: 0.00 | F128: 0.00 | G128: 0.00 | H128: 0.00 | I128: 0.00 | J128: 0.00 | K128: 0.00 | L128: 0.00 | M128: 0.00
A129: Сок | B129: 125.00 | C129: 0.00 | D129: 125.00 | E129: 0.00 | F129: 125.00 | G129: 0.00 | H129: 125.00 | I129: 0.00 | J129: 125.00 | K129: 0.00 | L129: 625.00 | M129: 62.50
A130: Фруктовое пюре | B130: 0.00 | C130: 0.00 | D130: 0.00 | E130: 0.00 | F130: 0.00 | G130: 0.00 | H130: 0.00 | I130: 0.00 | J130: 0.00 | K130: 0.00 | L130: 0.00 | M130: 0.00
A131: Сухофрукты | B131: 0.00 | C131: 0.00 | D131: 15.30 | E131: 0.00 | F131: 0.00 | G131: 0.00 | H131: 0.00 | I131: 0.00 | J131: 0.00 | K131: 15.30 | L131: 30.60 | M131: 3.06
A132: Урюк | B132: 12.75 | C132: 0.00 | D132: 0.00 | E132: 0.00 | F132: 0.00 | G132: 12.75 | H132: 0.00 | I132: 12.75 | J132: 0.00 | K132: 0.00 | L132: 38.25 | M132: 3.83
A133: повидло фруктовое | B133: 0.00 | C133: 0.00 | D133: 0.00 | E133: 10.00 | F133: 0.00 | G133: 0.00 | H133: 10.00 | I133: 16.00 | J133: 0.00 | K133: 0.00 | L133: 36.00 | M133: 3.60
A134: Шиповник порошок | B134: 0.00 | C134: 0.00 | D134: 2.25 | E134: 0.00 | F134: 0.00 | G134: 0.00 | H134: 0.00 | I134: 2.25 | J134: 0.00 | K134: 0.00 | L134: 4.50 | M134: 0.45
A135: Молоко | B135: 75.00 | C135: 281.94 | D135: 117.00 | E135: 245.36 | F135: 135.00 | G135: 120.60 | H135: 245.36 | I135: 136.00 | J135: 166.58 | K135: 282.56 | L135: 1805.40 | M135: 180.54
A136: Кефир | B136: 0.00 | C136: 0.00 | D136: 0.00 | E136: 0.00 | F136: 103.50 | G136: 0.00 | H136: 0.00 | I136: 0.00 | J136: 103.50 | K136: 0.00 | L136: 207.00 | M136: 20.70
A137: Ряженка | B137: 0.00 | C137: 0.00 | D137: 103.64 | E137: 0.00 | F137: 0.00 | G137: 103.64 | H137: 0.00 | I137: 0.00 | J137: 0.00 | K137: 0.00 | L137: 207.28 | M137: 20.73
A138: Катык | B138: 103.50 | C138: 0.00 | D138: 0.00 | E138: 0.00 | F138: 0.00 | G138: 0.00 | H138: 0.00 | I138: 103.50 | J138: 0.00 | K138: 0.00 | L138: 207.00 | M138: 20.70
A139: Молоко сгущенное | B139: 0.00 | C139: 10.00 | D139: 0.00 | E139: 0.00 | F139: 0.00 | G139: 0.00 | H139: 0.00 | I139: 0.00 | J139: 10.00 | K139: 0.00 | L139: 20.00 | M139: 2.00
A140: Сметана | B140: 0.00 | C140: 14.50 | D140: 5.13 | E140: 7.88 | F140: 5.00 | G140: 5.00 | H140: 6.63 | I140: 5.00 | J140: 9.50 | K140: 13.30 | L140: 71.94 | M140: 7.19
A141: Творог | B141: 0.00 | C141: 72.28 | D141: 0.00 | E141: 72.52 | F141: 0.00 | G141: 0.00 | H141: 72.52 | I141: 0.00 | J141: 72.28 | K141: 0.00 | L141: 289.60 | M141: 28.96
A142: Говядина | B142: 0.00 | C142: 0.00 | D142: 0.00 | E142: 34.00 | F142: 0.00 | G142: 0.00 | H142: 0.00 | I142: 33.80 | J142: 0.00 | K142: 0.00 | L142: 67.80 | M142: 6.78
A143: Фарш из говядины | B143: 34.30 | C143: 11.40 | D143: 20.00 | E143: 0.00 | F143: 38.50 | G143: 47.80 | H143: 50.20 | I143: 0.00 | J143: 0.00 | K143: 0.00 | L143: 202.20 | M143: 20.22
A144: Цыплята | B144: 65.69 | C144: 56.00 | D144: 21.65 | E144: 0.00 | F144: 107.62 | G144: 60.15 | H144: 22.61 | I144: 48.46 | J144: 22.61 | K144: 0.00 | L144: 404.79 | M144: 40.48
A145: Индейка филе | B145: 0.00 | C145: 0.00 | D145: 0.00 | E145: 0.00 | F145: 0.00 | G145: 0.00 | H145: 0.00 | I145: 0.00 | J145: 0.00 | K145: 0.00 | L145: 0.00 | M145: 0.00
A146: куриная грудка | B146: 0.00 | C146: 0.00 | D146: 0.00 | E146: 0.00 | F146: 0.00 | G146: 0.00 | H146: 0.00 | I146: 0.00 | J146: 0.00 | K146: 75.87 | L146: 75.87 | M146: 7.59
A147: Сыр | B147: 0.00 | C147: 5.10 | D147: 0.00 | E147: 5.10 | F147: 0.00 | G147: 5.10 | H147: 0.00 | I147: 5.10 | J147: 0.00 | K147: 19.50 | L147: 39.90 | M147: 3.99
A148: рыба филе | B148: 0.00 | C148: 0.00 | D148: 0.00 | E148: 0.00 | F148: 0.00 | G148: 0.00 | H148: 0.00 | I148: 0.00 | J148: 39.06 | K148: 0.00 | L148: 39.06 | M148: 3.91
A149: Кофейный напиток | B149: 0.00 | C149: 0.00 | D149: 0.00 | E149: 1.30 | F149: 0.00 | G149: 0.00 | H149: 1.30 | I149: 0.00 | J149: 0.00 | K149: 1.30 | L149: 3.90 | M149: 0.39
A150: Какао-порошок | B150: 0.00 | C150: 1.30 | D150: 0.00 | E150: 0.00 | F150: 1.30 | G150: 0.00 | H150: 0.00 | I150: 0.00 | J150: 1.30 | K150: 0.00 | L150: 3.90 | M150: 0.39
A151: печенье | B151: 0.00 | C151: 10.00 | D151: 0.00 | E151: 0.00 | F151: 0.00 | G151: 0.00 | H151: 10.00 | I151: 0.00 | J151: 0.00 | K151: 0.00 | L151: 20.00 | M151: 2.00
A152: крекер | B152: 0.00 | C152: 0.00 | D152: 0.00 | E152: 0.00 | F152: 10.00 | G152: 0.00 | H152: 0.00 | I152: 0.00 | J152: 10.00 | K152: 0.00 | L152: 20.00 | M152: 2.00
A153: Соль | B153: 2.90 | C153: 2.00 | D153: 3.44 | E153: 1.60 | F153: 2.30 | G153: 3.40 | H153: 2.50 | I153: 5.30 | J153: 3.33 | K153: 3.28 | L153: 30.05 | M153: 3.01
A154: печенье КП | B154: 0.00 | C154: 0.00 | D154: 0.00 | E154: 0.00 | F154: 0.00 | G154: 0.00 | H154: 0.00 | I154: 0.00 | J154: 0.00 | K154: 0.00 | L154: 0.00 | M154: 0.00
A155: Сухари панировочные | B155: 0.00 | C155: 5.00 | D155: 0.00 | E155: 0.00 | F155: 0.00 | G155: 4.00 | H155: 1.70 | I155: 0.00 | J155: 3.75 | K155: 0.00 | L155: 14.45 | M155: 1.45
A156: вафли | B156: 0.00 | C156: 0.00 | D156: 0.00 | E156: 21.00 | F156: 0.00 | G156: 0.00 | H156: 0.00 | I156: 0.00 | J156: 0.00 | K156: 0.00 | L156: 21.00 | M156: 2.10
A157: Крупы, бобовые | B157: 44.50 | C157: 26.70 | D157: 28.00 | E157: 32.78 | F157: 50.28 | G157: 46.00 | H157: 43.98 | I157: 27.70 | J157: 36.95 | K157: 54.90 | L157: 391.79 | M157: 39.18
A158: Овощи разные | B158: 71.10 | C158: 61.91 | D158: 262.43 | E158: 95.10 | F158: 239.66 | G158: 106.98 | H158: 56.32 | I158: 188.92 | J158: 59.89 | K158: 94.95 | L158: 1237.25 | M158: 123.72
A159: Фрукты | B159: 0.00 | C159: 135.00 | D159: 0.00 | E159: 106.90 | F159: 38.10 | G159: 96.90 | H159: 48.10 | I159: 112.90 | J159: 0.00 | K159: 101.00 | L159: 638.90 | M159: 63.89
A160: Фрукты сухие | B160: 12.75 | C160: 0.00 | D160: 15.30 | E160: 10.00 | F160: 0.00 | G160: 12.75 | H160: 10.00 | I160: 28.75 | J160: 0.00 | K160: 15.30 | L160: 104.85 | M160: 10.49
A161: Молочные прод. | B161: 178.50 | C161: 291.94 | D161: 220.64 | E161: 245.36 | F161: 238.50 | G161: 224.24 | H161: 245.36 | I161: 239.50 | J161: 280.08 | K161: 282.56 | L161: 2446.68 | M161: 244.67
A162: Говядина | B162: 34.30 | C162: 11.40 | D162: 20.00 | E162: 34.00 | F162: 38.50 | G162: 47.80 | H162: 50.20 | I162: 33.80 | J162: 0.00 | K162: 0.00 | L162: 270.00 | M162: 27.00
A163: птица | B163: 65.69 | C163: 56.00 | D163: 21.65 | E163: 0.00 | F163: 107.62 | G163: 60.15 | H163: 22.61 | I163: 48.46 | J163: 22.61 | K163: 75.87 | L163: 480.66 | M163: 48.07
A164: Макаронные изделия | B164: 6.00 | C164: 0.00 | D164: 38.50 | E164: 0.00 | F164: 0.00 | G164: 38.50 | H164: 0.00 | I164: 14.00 | J164: 0.00 | K164: 0.00 | L164: 97.00 | M164: 9.70
A165: Хлеб пшеничный | B165: 49.00 | C165: 54.00 | D165: 45.00 | E165: 45.00 | F165: 45.00 | G165: 45.00 | H165: 59.40 | I165: 45.00 | J165: 45.00 | K165: 45.00 | L165: 477.40 | M165: 47.74
A166: Кондитерские изделия | B166: 0.00 | C166: 10.00 | D166: 0.00 | E166: 21.00 | F166: 10.00 | G166: 0.00 | H166: 10.00 | I166: 0.00 | J166: 10.00 | K166: 0.00 | L166: 61.00 | M166: 6.10

Sheet раскл1-3
C1: Меню-раскладка к примерному 10-дневному меню
C2: для организации питания детей в дошкольных образовательных учреждениях
C3: от 1-3 лет
A5: День 1 - ый
A6: Прием пищи | C6: Выход блюда | D6: Кол - во | E6: Кол - во | F6: Пищевые вещества (г) | I6: Энергетическая | J6: № рецептуры
A7: Наименование блюд | D7: (в гр ) | E7: (в гр ) | I7: ценность
D8: брутто | E8: нетто | F8: белки | G8: жиры | H8: угл-ды | I8: Ккал
B9: ЗАВТРАК
A10: Каша манная молочная с маслом | C10: 150/3 | F10: 7.50 | G10: 7.50 | H10: 18.40 | I10: 171.10 | J10: ТТК №4
B11: Крупа манная | D11: 15.00 | E11: 15.00
B12: Молоко | D12: 75.00 | E12: 75.00
B13: Вода | D13: 57.00 | E13: 57.00
B14: Сахар | D14: 2.00 | E14: 2.00
B15: Соль | D15: 0.80 | E15: 0.80
B16: Масло сливочное | D16: 3.00 | E16: 3.00
A17: Чай с сахаром | C17: 160/4 | F17: 0.05 | G17: 0.01 | H17: 4.42 | I17: 18.00 | J17: № 411 Дели2016
B18: Заварка | D18: 0.2 | E18: 0.2
B19: сахар | D19: 4 | E19: 4
B20: Вода | D20: 160 | E20: 160
A21: Бутерброд с маслом сливочным | C21: 25/5 | F21: 1.9 | G21: 4.4 | H21: 13 | I21: 99 | J21: №1 Дели2010
B22: Батон нарезной | D22: 25 | E22: 25
B23: Масло сливочное | D23: 5 | E23: 5
A24: Итого: | C24: 347 | F24: =SUM(F9:F23) -> 9.45 | G24: =SUM(G9:G23) -> 11.91 | H24: =SUM(H9:H23) -> 35.82 | I24: =SUM(I9:I23) -> 288.10
A25: Сок | C25: 125 | D25: 125 | E25: 125 | F25: 0.60 | G25: 0.30 | H25: 13.00 | I25: 57.00 | J25: №418Дели2016
A26: персиковый
A27: Итого: | C27: 125 | F27: =SUM(F25) -> 0.60 | G27: =SUM(G25) -> 0.30 | H27: =SUM(H25) -> 13.00 | I27: =SUM(I25) -> 57.00
C28: 472 | F28: =F24+F27 -> 10.05 | G28: =G24+G27 -> 12.21 | H28: =H24+H27 -> 48.82 | I28: =I24+I27 -> 345.10
B29: ОБЕД
A30: Салат из свежей капусты | C30: 30 | F30: 0.50 | G30: 1.50 | H30: 2.80 | I30: 27.00 | J30: № 21Дели 2016
B31: Капуста свежая | D31: 33.38 | E31: 26.70
B32: Соль | D32: 0.30 | E32: 0.30
B33: Масло растительное | D33: 1.50 | E33: 1.50
B34: сахар | D34: 1.50 | E34: 1.50
A35: Суп вермишелевый с картофелем и курицей | C35: 150/10 | F35: 3.00 | G35: 4.32 | H35: 11.34 | I35: 99.00 | J35: №88 Дели 2016
B36: цыплята | D36: 22.61 | E36: 14.7
B37: Картофель | D37: 75.15 | E37: 45.0
B38: Морковь | D38: 8.0 | E38: 6.0
B39: Лук репчатый | D39: 7.1 | E39: 6.0
B40: Вермишель | D40: 6.0 | E40: 6.0
B41: Масло растительное | D41: 1.8 | E41: 1.8
B42: Соль | D42: 0.5 | E42: 0.5
B43: Вода | D43: 114.0 | E43: 114.0
A44: Тефтели из говядины | C44: 50 | F44: 3.87 | G44: 5 | H44: 3.13 | I44: 73 | J44: ТТК № 1152 от 09.10.2020
B45: фарш из говядины | D45: 34.3 | E45: 34.3
B46: Хлеб пшеничный 1с | D46: 4 | E46: 4
B47: Вода | D47: 4 | E47: 4
B48: Лук репчатый | D48: 10.2 | E48: 8.6
B49: Крупа манная | D49: 2 | E49: 2
B50: Соль | D50: 0.3 | E50: 0.3
B51: масса полуфабриката | E51: 53
B52: Масло растительное | D52: 1 | E52: 1
A53: Каша гречневая вязкая | C53: 110/2,5 | F53: 5.50 | G53: 5.00 | H53: 32.00 | I53: 195.00 | J53: №182,Дели 2016
B54: Крупа гречневая | D54: 27.50 | E54: 27.50
B55: Вода | D55: 91.30 | E55: 91.30
B56: Масло сливочное | D56: 2.50 | E56: 2.50
B57: Соль | D57: 0.40 | E57: 0.40
A58: Кисель | C58: 150 | H58: 8.34 | I58: 33.34 | J58: №284Партнер2014
B59: Кисель-концентрат | D59: 17.50 | E59: 17.50
B60: Сахар | D60: 4.00 | E60: 4.00
B61: вода | D61: 150.00 | E61: 150.00
A62: Хлеб сельский | C62: 30 | D62: 30 | E62: 30 | F62: 1.5 | G62: 0.3 | H62: 14.3 | I62: 66
A63: Итого: | C63: 532.50 | F63: =SUM(F30:F62) -> 14.37 | G63: =SUM(G30:G62) -> 16.12 | H63: 71.91 | I63: 493.34
B64: ПОЛДНИК
A65: Булочка Домашняя | C65: 40 | F65: 3.60 | G65: 4.00 | H65: 29.00 | I65: 167.00 | J65: №258 Партнер г. Уфа 2014
B66: Мука пшеничная | D66: 27.00 | E66: 27.00
B67: Сахар | D67: 5.60 | E67: 5.60
B68: вода | D68: 11.20 | E68: 11.20
B69: Масло растительное | D69: 5.60 | E69: 5.60
B70: Дрожжи сухие | D70: 0.16 | E70: 0.16
B71: Соль | D71: 0.20 | E71: 0.20
B72: Яйцо | D72: 0.80 | E72: 0.80
B73: Масса полуфабриката | E73: 48.40
B74: Масло растительное | D74: 0.10 | E74: 0.10
A75: Катык | C75: 100 | F75: 3.00 | G75: 2.50 | H75: 4.50 | I75: 54.30 | J75: №401Дели2010
B76: катык | D76: 103.5 | E76: 100
A77: Рагу с курицей | C77: 20/100 | F77: 4.50 | G77: 7.60 | H77: 13.00 | I77: 138.00 | J77: ТТК №63
B78: цыплята | D78: 43.08 | E78: 28.00
B79: Картофель | D79: 122.41 | E79: 73.30
B80: Морковь | D80: 12.40 | E80: 9.33
B81: Соль | D81: 0.40 | E81: 0.40
B82: вода | D82: 26.70 | E82: 26.70
B83: Масло растительное | D83: 3.00 | E83: 3.00
B84: Мука пшеничная | D84: 1.70 | E84: 1.70
B85: сахар | D85: 0.30 | E85: 0.30
A86: Напиток из урюка | C86: 150 | F86: 0.50 | G86: 0.03 | H86: 12.50 | I86: 52.10 | J86: ТТК №68
B87: урюк | D87: 12.75 | E87: 12.5
B88: Сахар | D88: 4 | E88: 4
B89: Вода | D89: 150 | E89: 150
A90: Хлеб пшеничный 1с | C90: 20 | D90: 20 | E90: 20 | F90: 1.6 | G90: 0.2 | H90: 9.8 | I90: 47
A91: Итого: | C91: 430.00 | F91: =SUM(F65:F90) -> 13.20 | G91: =SUM(G65:G90) -> 14.33 | H91: 68.80 | I91: 458.40
A92: ВСЕГО: | C92: =C24+C27+C63+C91 -> 1434.50 | F92: =F24+F27+F63+F91 -> 37.62 | G92: =G24+G27+G63+G91 -> 42.66 | H92: =H24+H27+H63+H91 -> 189.53 | I92: =I24+I27+I63+I91 -> 1296.84
A94: День 2- ой
A95: Прием пищи | C95: Выход блюда | D95: Кол - во | E95: Кол - во | F95: Пищевые вещества (г) | I95: Энергетическая | J95: № рецептуры
A96: Наименование блюд | D96: (в гр ) | E96: (в гр ) | I96: ценность
D97: брутто | E97: нетто | F97: белки | G97: жиры | H97: угл-ды | I97: Ккал
B98: ЗАВТРАК
A99: Каша "Дружба" молочная с маслом | C99: 150/3 | F99: 3.90 | G99: 4.35 | H99: 19.00 | I99: 131.00 | J99: ТТК №7
B100: Крупа рисовая | D100: 11 | E100: 11
B101: Крупа пшенная | D101: 8 | E101: 8
B102: Молоко | D102: 65 | E102: 65
B103: Вода | D103: 65 | E103: 65
B104: Сахар | D104: 0.75 | E104: 0.75
B105: Соль | D105: 0.5 | E105: 0.5
B106: Масло сливочное | D106: 3 | E106: 3
A107: Какао с молоком | C107: 160 | F107: 2.15 | G107: 2.29 | H107: 12.09 | I107: 65.16 | J107: №272 Парнер г. Уфа 2014
B108: Какао-порошок | D108: 1.3 | E108: 1.3
B109: Сахар | D109: 7 | E109: 7
B110: Молоко | D110: 80 | E110: 80
B111: вода | D111: 90 | E111: 90
A112: Бутерброд с сыром, маслом | C112: 25/5/3 | F112: 3.50 | G112: 5.95 | H112: 12.90 | I112: 119.60 | J112: №3Дели2010
B113: Батон нарезной | D113: 25 | E113: 25
B114: Сыр | D114: 5.1 | E114: 5
B115: Масло сливочное | D115: 3 | E115: 3
A116: Итого: | C116: 346 | F116: =SUM(F98:F115) -> 9.55 | G116: 12.33 | H116: =SUM(H98:H115) -> 43.99 | I116: =SUM(I98:I115) -> 315.76
A117: Фрукты свежие | C117: 85 | D117: 96.9 | E117: 85 | F117: 0.40 | G117: 0.34 | H117: 10.50 | I117: 47.00 | J117: № 386 Дели 2016
A118: апельсин
A119: Итого: | C119: 85 | F119: =SUM(F117) -> 0.40 | G119: =SUM(G117) -> 0.34 | H119: =SUM(H117) -> 10.50 | I119: =SUM(I117) -> 47.00
C120: 431 | F120: =F116+F119 -> 9.95 | G120: =G116+G119 -> 12.67 | H120: =H116+H119 -> 54.49 | I120: =I116+I119 -> 362.76
B121: ОБЕД
A122: Огурцы свежие порционно | C122: 30 | F122: 0.21 | G122: 0.03 | H122: 0.57 | I122: 3.39 | J122: стр563,сб1996
B123: огурцы свежие | D123: 30.60 | E123: 30.00
A124: Суп из овощей с мясными фрикадельками, со сметаной | C124: 150/10/5 | F124: 4.70 | G124: 3.90 | H124: 23.00 | I124: 146.00 | J124: №64 "Партнер"2014
B125: Фарш из говядины | D125: 11.4 | E125: 11.4
B126: Лук репчатый | D126: 1.19 | E126: 1
B127: Яйцо | D127: 1 | E127: 1
B128: Вода для фарша | D128: 1.14 | E128: 1.14
B129: Масса полуфабриката | E129: 13.4
B130: Капуста свежая | D130: 15.00 | E130: 12.00
B131: Картофель | D131: 50.10 | E131: 30.00
B132: Морковь | D132: 7.98 | E132: 6.00
B133: Лук репчатый | D133: 7.14 | E133: 6.00
B134: Масло растительное | D134: 2.00 | E134: 2.00
B135: Соль | D135: 0.50 | E135: 0.50
B136: Бульон или вода | D136: 114.00 | E136: 114.00
B137: Сметана | D137: 5.00 | E137: 5.00
A138: Котлеты рубленые из птицы | C138: 50 | F138: 4.40 | G138: 8.30 | H138: 2.00 | I138: 100.00 | J138: № 205,справ.М2003
B139: Цыплята | D139: 56 | E139: 36.4
B140: Хлеб пшеничный 1с | D140: 9 | E140: 9
B141: Вода | D141: 13 | E141: 13.0
B142: Сухари панировочные | D142: 5 | E142: 5.0
B143: масса полуфабриката | E143: 62.5
B144: Масло растительное | D144: 0.6 | E144: 0.6
A145: Пюре Картофельное | C145: 110 | F145: 3.13 | G145: 3.76 | H145: 13.03 | I145: 131.15 | J145: №137 Партнер 2014
B146: Картофель | D146: 157.69 | E146: 94.43
B147: Молоко | D147: 17.38 | E147: 16.50
B148: Масло сливочное | D148: 3.00 | E148: 3.00
B149: Соль | D149: 0.90 | E149: 0.90
A150: Компот из свежих яблок | C150: 150 | F150: 0.10 | G150: 0.10 | H150: 10.20 | I150: 42.10 | J150: № 390 Дели 2016
B151: Яблоки | D151: 34 | E151: 30
B152: Сахар | D152: 4 | E152: 4
B153: Вода | D153: 130 | E153: 130
A154: Хлеб сельский | C154: 30 | D154: 30 | E154: 30 | F154: 1.5 | G154: 0.3 | H154: 14.3 | I154: 66
A155: Итого: | C155: 535.00 | F155: =SUM(F122:F154) -> 14.04 | G155: =SUM(G122:G154) -> 16.39 | H155: =SUM(H122:H154) -> 63.10 | I155: =SUM(I122:I154) -> 488.64
B156: ПОЛДНИК
A157: Кондитерские изделия | C157: 10 | F157: 2.20 | G157: 2.80 | H157: 20.50 | I157: 114.00
A158: печенье | D158: 10.00 | E158: 10.00
A159: Молоко кипяченое | C159: 100 | F159: 2.30 | G159: 2.50 | H159: 3.60 | I159: 46.00 | J159: №419 Дели2016
B160: молоко | D160: 105.36 | E160: 100.00
A161: Суфле из творога с молоком сгущенным | C161: 100/10 | F161: 5.82 | G161: 8.10 | H161: 15.53 | I161: 158.00 | J161: ТТК №567
B162: Творог | D162: 72.28 | E162: 71.33
B163: Крупа манная | D163: 7.70 | E163: 7.70
B164: Яйцо | D164: 4.70 | E164: 4.70
B165: Сахар | D165: 7.60 | E165: 7.60
B166: Молоко | D166: 14.20 | E166: 14.20
B167: соль | D167: 0.10 | E167: 0.10
B168: Сметана | D168: 9.50 | E168: 9.50
B169: Масло растительное | D169: 0.40 | E169: 0.40
B170: молоко сгущенное | D170: 10.00 | E170: 10.00
A171: Чай с сахаром и лимоном | C171: 150/4/4 | F171: 0.09 | G171: 0.01 | H171: 8.50 | I171: 34.50 | J171: №393Дели2010
B172: Заварка | D172: 0.3 | E172: 0.3
B173: Сахар | D173: 4 | E173: 4
B174: лимон | D174: 4.1 | E174: 4
B175: Вода | D175: 150.0 | E175: 150.0
A176: Хлеб пшеничный 1с | C176: 20 | D176: 20 | E176: 20 | F176: 1.6 | G176: 0.2 | H176: 9.8 | I176: 47
A177: Итого: | C177: 398 | F177: =SUM(F157:F176) -> 12.01 | G177: =SUM(G157:G176) -> 13.61 | H177: =SUM(H157:H176) -> 57.93 | I177: =SUM(I157:I176) -> 399.50
A178: ВСЕГО: | C178: =C116+C119+C155+C177 -> 1364.00 | F178: =F116+F119+F155+F177 -> 36.00 | G178: =G116+G119+G155+G177 -> 42.67 | H178: =H116+H119+H155+H177 -> 175.52 | I178: =I116+I119+I155+I177 -> 1250.90
A180: День 3 - ий
A181: Прием пищи | C181: Выход блюда | D181: Кол - во | E181: Кол - во | F181: Пищевые вещества (г) | I181: Энергетическая | J181: № рецептуры
A182: Наименование блюд | D182: (в гр ) | E182: (в гр ) | I182: ценность
D183: брутто | E183: нетто | F183: белки | G183: жиры | H183: угл-ды | I183: Ккал
B184: ЗАВТРАК
A185: Каша геркулесовая молочная с маслом | C185: 150/3 | F185: 5.00 | G185: 5.63 | H185: 16.50 | I185: 136.50 | J185: ТТК №5
B186: Крупа геркулесовая | D186: 19 | E186: 19
B187: Молоко | D187: 75.00 | E187: 75.00
B188: Сахар | D188: 2.00 | E188: 2.00
B189: Вода | D189: 57.00 | E189: 57.00
B190: Соль | D190: 0.8 | E190: 0.8
B191: Масло сливочное | D191: 3 | E191: 3
A192: Чай с молоком,сахаром | C192: 160/4 | F192: 2.30 | G192: 2.00 | H192: 11.90 | I192: 74.80 | J192: №394Дели2010
B193: Заварка | D193: 0.2 | E193: 0.2
B194: Сахар | D194: 4 | E194: 4
B195: Молоко | D195: 42 | E195: 42
B196: Вода | D196: 115 | E196: 115
A197: Бутерброд с маслом сливочным | C197: 25/5 | F197: 1.9 | G197: 4.4 | H197: 13 | I197: 99 | J197: №1 Дели2010
B198: Батон нарезной | D198: 25 | E198: 25
B199: Масло сливочное | D199: 5 | E199: 5
A200: Итого: | C200: 347 | F200: =SUM(F184:F199) -> 9.20 | G200: =SUM(G184:G199) -> 12.03 | H200: =SUM(H184:H199) -> 41.40 | I200: =SUM(I184:I199) -> 310.30
A201: Сок | C201: 125 | D201: 125 | E201: 125 | F201: 0.80 | G201: 0.20 | H201: 7.00 | I201: 33.00 | J201: №418Дели2016
A202: персиковый
A203: Итого: | C203: =SUM(C201:C201) -> 125 | F203: =SUM(F201) -> 0.80 | G203: =SUM(G201) -> 0.20 | H203: =SUM(H201) -> 7.00 | I203: =SUM(I201) -> 33.00
... 694 more rows

Sheet свод 3-7
B1: Расход продуктов ДОУ
D2: от 3 до 7 лет | K2: НЕТТО
A3: Наименов. прод. | B3: 1 | C3: 2 | D3: 3 | E3: 4 | F3: 5 | G3: 6 | H3: 7 | I3: 8 | J3: 9 | K3: 10 | L3: Кол-во израсходованных продуктов за 10 дней | M3: Среднее
A5: Сахар | B5: 28.08 | C5: 30.40 | D5: 23.70 | E5: 28.00 | F5: 22.90 | G5: 26.50 | H5: 28.00 | I5: 19.21 | J5: 30.60 | K5: 20.83 | L5: 258.22 | M5: 25.82
A6: Заварка | B6: 0.30 | C6: 0.35 | D6: 0.30 | E6: 0.30 | F6: 0.35 | G6: 0.30 | H6: 0.35 | I6: 0.30 | J6: 0.30 | K6: 0.35 | L6: 3.20 | M6: 0.32
A7: Яйцо | B7: 1.00 | C7: 8.64 | D7: 48.00 | E7: 7.80 | F7: 0.00 | G7: 8.50 | H7: 7.80 | I7: 2.50 | J7: 17.64 | K7: 106.40 | L7: 208.28 | M7: 20.83
A8: Дрожжи сухие | B8: 0.20 | C8: 0.00 | D8: 0.30 | E8: 0.00 | F8: 0.00 | G8: 0.38 | H8: 0.00 | I8: 0.20 | J8: 0.00 | K8: 0.20 | L8: 1.28 | M8: 0.13
A9: Батон нарезной | B9: 25.00 | C9: 25.00 | D9: 25.00 | E9: 25.00 | F9: 25.00 | G9: 25.00 | H9: 25.00 | I9: 25.00 | J9: 25.00 | K9: 25.00 | L9: 250.00 | M9: 25.00
A10: Хлеб пшеничный 1с | B10: 26.00 | C10: 33.00 | D10: 20.00 | E10: 20.00 | F10: 20.00 | G10: 20.00 | H10: 32.00 | I10: 20.00 | J10: 20.00 | K10: 20.00 | L10: 231.00 | M10: 23.10
A11: Хлеб сельский | B11: 37.50 | C11: 37.50 | D11: 37.50 | E11: 37.50 | F11: 37.50 | G11: 37.50 | H11: 37.50 | I11: 37.50 | J11: 37.50 | K11: 37.50 | L11: 375.00 | M11: 37.50
A12: Мука пшеничная | B12: 36.40 | C12: 0.00 | D12: 35.31 | E12: 0.00 | F12: 1.21 | G12: 30.00 | H12: 1.30 | I12: 26.10 | J12: 0.00 | K12: 24.70 | L12: 155.02 | M12: 15.50
A13: Кисель-концентрат | B13: 21.60 | C13: 0.00 | D13: 0.00 | E13: 21.60 | F13: 0.00 | G13: 21.60 | H13: 0.00 | I13: 0.00 | J13: 21.60 | K13: 0.00 | L13: 86.40 | M13: 8.64
A14: Макаронные изделия | B14: 0.00 | C14: 0.00 | D14: 45.50 | E14: 0.00 | F14: 0.00 | G14: 45.50 | H14: 0.00 | I14: 0.00 | J14: 0.00 | K14: 0.00 | L14: 91.00 | M14: 9.10
A15: Вермишель | B15: 8.00 | C15: 0.00 | D15: 0.00 | E15: 0.00 | F15: 0.00 | G15: 0.00 | H15: 0.00 | I15: 15.55 | J15: 0.00 | K15: 0.00 | L15: 23.55 | M15: 2.36
A16: Крупа рисовая | B16: 0.00 | C16: 15.00 | D16: 12.00 | E16: 18.00 | F16: 38.50 | G16: 0.00 | H16: 18.00 | I16: 45.60 | J16: 0.00 | K16: 37.70 | L16: 184.80 | M16: 18.48
A17: Крупа кукурузная | B17: 0.00 | C17: 0.00 | D17: 0.00 | E17: 0.00 | F17: 0.00 | G17: 0.00 | H17: 0.00 | I17: 0.00 | J17: 0.00 | K17: 0.00 | L17: 0.00 | M17: 0.00
A18: Крупа манная | B18: 23.00 | C18: 11.40 | D18: 0.00 | E18: 0.00 | F18: 0.00 | G18: 0.00 | H18: 0.00 | I18: 0.00 | J18: 13.15 | K18: 0.00 | L18: 47.55 | M18: 4.76
A19: Горох | B19: 0.00 | C19: 0.00 | D19: 0.00 | E19: 0.00 | F19: 0.00 | G19: 0.00 | H19: 20.00 | I19: 0.00 | J19: 0.00 | K19: 0.00 | L19: 20.00 | M19: 2.00
A20: Крупа пшенная | B20: 0.00 | C20: 11.00 | D20: 0.00 | E20: 30.00 | F20: 0.00 | G20: 0.00 | H20: 0.00 | I20: 0.00 | J20: 0.00 | K20: 30.00 | L20: 71.00 | M20: 7.10
A21: Крупа ячневая | B21: 0.00 | C21: 0.00 | D21: 0.00 | E21: 0.00 | F21: 0.00 | G21: 0.00 | H21: 25.00 | I21: 0.00 | J21: 0.00 | K21: 0.00 | L21: 25.00 | M21: 2.50
A22: Полба | B22: 0.00 | C22: 0.00 | D22: 0.00 | E22: 0.00 | F22: 25.00 | G22: 0.00 | H22: 0.00 | I22: 0.00 | J22: 25.00 | K22: 0.00 | L22: 50.00 | M22: 5.00
A23: Крупа перловая | B23: 0.00 | C23: 0.00 | D23: 0.00 | E23: 0.00 | F23: 0.00 | G23: 8.00 | H23: 0.00 | I23: 0.00 | J23: 0.00 | K23: 0.00 | L23: 8.00 | M23: 0.80
A24: Крупа геркулесовая | B24: 0.00 | C24: 0.00 | D24: 25.00 | E24: 0.00 | F24: 0.00 | G24: 25.00 | H24: 0.00 | I24: 0.00 | J24: 0.00 | K24: 0.00 | L24: 50.00 | M24: 5.00
A25: Крупа пшеничная | B25: 0.00 | C25: 0.00 | D25: 0.00 | E25: 0.00 | F25: 0.00 | G25: 0.00 | H25: 0.00 | I25: 0.00 | J25: 0.00 | K25: 0.00 | L25: 0.00 | M25: 0.00
A26: Крупа гречневая | B26: 32.50 | C26: 0.00 | D26: 0.00 | E26: 0.00 | F26: 0.00 | G26: 25.00 | H26: 0.00 | I26: 0.00 | J26: 12.00 | K26: 0.00 | L26: 69.50 | M26: 6.95
A27: Картофель | B27: 148.00 | C27: 151.60 | D27: 60.00 | E27: 131.20 | F27: 34.50 | G27: 60.00 | H27: 183.00 | I27: 56.00 | J27: 171.60 | K27: 40.00 | L27: 1035.90 | M27: 103.59
A28: Морковь | B28: 19.80 | C28: 8.00 | D28: 29.00 | E28: 8.00 | F28: 27.26 | G28: 37.28 | H28: 8.00 | I28: 45.40 | J28: 8.00 | K28: 25.00 | L28: 215.74 | M28: 21.57
A29: Лук репчатый | B29: 20.19 | C29: 9.50 | D29: 28.12 | E29: 21.59 | F29: 24.29 | G29: 21.43 | H29: 18.30 | I29: 31.30 | J29: 21.00 | K29: 22.00 | L29: 217.72 | M29: 21.77
A30: Свекла | B30: 0.00 | C30: 0.00 | D30: 0.00 | E30: 0.00 | F30: 51.00 | G30: 0.00 | H30: 0.00 | I30: 32.00 | J30: 0.00 | K30: 0.00 | L30: 83.00 | M30: 8.30
A31: Капуста свежая | B31: 44.50 | C31: 16.00 | D31: 162.00 | E31: 40.00 | F31: 99.32 | G31: 44.50 | H31: 0.00 | I31: 45.30 | J31: 30.30 | K31: 16.00 | L31: 497.92 | M31: 49.79
A32: Икра кабачковая | B32: 0.00 | C32: 0.00 | D32: 0.00 | E32: 0.00 | F32: 0.00 | G32: 0.00 | H32: 0.00 | I32: 0.00 | J32: 0.00 | K32: 0.00 | L32: 0.00 | M32: 0.00
A33: Огурцы соленые | B33: 0.00 | C33: 0.00 | D33: 0.00 | E33: 0.00 | F33: 0.00 | G33: 12.00 | H33: 0.00 | I33: 0.00 | J33: 0.00 | K33: 0.00 | L33: 12.00 | M33: 1.20
A34: Помидоры свежие | B34: 0.00 | C34: 0.00 | D34: 50.00 | E34: 0.00 | F34: 0.00 | G34: 0.00 | H34: 0.00 | I34: 50.00 | J34: 0.00 | K34: 0.00 | L34: 100.00 | M34: 10.00
A35: Огурцы свежие | B35: 0.00 | C35: 50.00 | D35: 0.00 | E35: 48.00 | F35: 50.00 | G35: 0.00 | H35: 50.00 | I35: 0.00 | J35: 18.00 | K35: 48.00 | L35: 264.00 | M35: 26.40
A36: перец | B36: 0.00 | C36: 0.00 | D36: 0.00 | E36: 0.00 | F36: 0.00 | G36: 0.00 | H36: 0.00 | I36: 0.00 | J36: 0.00 | K36: 0.00 | L36: 0.00 | M36: 0.00
A37: Томат-паста | B37: 1.00 | C37: 0.00 | D37: 5.60 | E37: 0.00 | F37: 1.00 | G37: 0.00 | H37: 0.00 | I37: 1.00 | J37: 0.00 | K37: 3.00 | L37: 11.60 | M37: 1.16
A38: Масло сливочное | B38: 11.00 | C38: 9.00 | D38: 22.10 | E38: 9.90 | F38: 12.33 | G38: 13.10 | H38: 15.90 | I38: 9.01 | J38: 11.00 | K38: 16.20 | L38: 129.54 | M38: 12.95
A39: Масло растительное | B39: 18.70 | C39: 5.50 | D39: 3.50 | E39: 10.33 | F39: 10.35 | G39: 14.30 | H39: 3.00 | I39: 11.20 | J39: 5.77 | K39: 13.38 | L39: 96.03 | M39: 9.60
A40: Фрукты свежие | B40: 0.00 | C40: 100.00 | D40: 0.00 | E40: 100.00 | F40: 0.00 | G40: 100.00 | H40: 0.00 | I40: 100.00 | J40: 0.00 | K40: 100.00 | L40: 500.00 | M40: 50.00
A41: Яблоки | B41: 0.00 | C41: 36.00 | D41: 0.00 | E41: 0.00 | F41: 36.00 | G41: 0.00 | H41: 36.00 | I41: 0.00 | J41: 0.00 | K41: 0.00 | L41: 108.00 | M41: 10.80
A42: крыжовник зам. | B42: 0.00 | C42: 0.00 | D42: 0.00 | E42: 0.00 | F42: 0.00 | G42: 0.00 | H42: 0.00 | I42: 0.00 | J42: 0.00 | K42: 0.00 | L42: 0.00 | M42: 0.00
A43: Лимон | B43: 0.00 | C43: 5.00 | D43: 0.00 | E43: 0.00 | F43: 5.00 | G43: 0.00 | H43: 5.00 | I43: 0.00 | J43: 0.00 | K43: 5.00 | L43: 20.00 | M43: 2.00
A44: Ягодная смесь зам. | B44: 0.00 | C44: 0.00 | D44: 0.00 | E44: 0.00 | F44: 0.00 | G44: 0.00 | H44: 0.00 | I44: 0.00 | J44: 0.00 | K44: 0.00 | L44: 0.00 | M44: 0.00
A45: Сок | B45: 0.00 | C45: 0.00 | D45: 125.00 | E45: 0.00 | F45: 125.00 | G45: 0.00 | H45: 125.00 | I45: 0.00 | J45: 125.00 | K45: 0.00 | L45: 500.00 | M45: 50.00
A46: Фруктовое пюре | B46: 0.00 | C46: 0.00 | D46: 0.00 | E46: 0.00 | F46: 0.00 | G46: 0.00 | H46: 0.00 | I46: 0.00 | J46: 0.00 | K46: 0.00 | L46: 0.00 | M46: 0.00
A47: Сухофрукты | B47: 0.00 | C47: 0.00 | D47: 18.00 | E47: 0.00 | F47: 0.00 | G47: 0.00 | H47: 0.00 | I47: 0.00 | J47: 0.00 | K47: 18.00 | L47: 36.00 | M47: 3.60
A48: Урюк | B48: 15.00 | C48: 0.00 | D48: 0.00 | E48: 0.00 | F48: 0.00 | G48: 15.00 | H48: 0.00 | I48: 15.00 | J48: 0.00 | K48: 0.00 | L48: 45.00 | M48: 4.50
A49: повидло фруктовое | B49: 0.00 | C49: 0.00 | D49: 0.00 | E49: 20.00 | F49: 0.00 | G49: 0.00 | H49: 20.00 | I49: 20.00 | J49: 0.00 | K49: 0.00 | L49: 60.00 | M49: 6.00
A50: Шиповник порошок | B50: 0.00 | C50: 0.00 | D50: 2.70 | E50: 0.00 | F50: 0.00 | G50: 0.00 | H50: 0.00 | I50: 2.70 | J50: 0.00 | K50: 0.00 | L50: 5.40 | M50: 0.54
A51: Молоко | B51: 100.00 | C51: 326.90 | D51: 148.00 | E51: 288.00 | F51: 178.00 | G51: 152.50 | H51: 288.00 | I51: 151.11 | J51: 218.90 | K51: 328.00 | L51: 2179.41 | M51: 217.94
A52: Кефир | B52: 0.00 | C52: 0.00 | D52: 0.00 | E52: 0.00 | F52: 110.00 | G52: 0.00 | H52: 0.00 | I52: 0.00 | J52: 110.00 | K52: 0.00 | L52: 220.00 | M52: 22.00
A53: Ряженка | B53: 0.00 | C53: 0.00 | D53: 110.00 | E53: 0.00 | F53: 0.00 | G53: 110.00 | H53: 0.00 | I53: 0.00 | J53: 0.00 | K53: 0.00 | L53: 220.00 | M53: 22.00
A54: Катык | B54: 110.00 | C54: 0.00 | D54: 0.00 | E54: 0.00 | F54: 0.00 | G54: 0.00 | H54: 0.00 | I54: 110.00 | J54: 0.00 | K54: 0.00 | L54: 220.00 | M54: 22.00
A55: Молоко сгущенное | B55: 0.00 | C55: 20.00 | D55: 0.00 | E55: 0.00 | F55: 0.00 | G55: 0.00 | H55: 0.00 | I55: 0.00 | J55: 20.00 | K55: 0.00 | L55: 40.00 | M55: 4.00
A56: Сметана | B56: 0.00 | C56: 20.28 | D56: 6.00 | E56: 8.90 | F56: 6.00 | G56: 5.00 | H56: 8.90 | I56: 5.00 | J56: 14.28 | K56: 16.29 | L56: 90.65 | M56: 9.07
A57: Творог | B57: 0.00 | C57: 107.14 | D57: 0.00 | E57: 97.50 | F57: 0.00 | G57: 0.00 | H57: 97.50 | I57: 0.00 | J57: 107.14 | K57: 0.00 | L57: 409.28 | M57: 40.93
A58: Говядина | B58: 0.00 | C58: 0.00 | D58: 0.00 | E58: 41.78 | F58: 0.00 | G58: 0.00 | H58: 0.00 | I58: 52.00 | J58: 0.00 | K58: 0.00 | L58: 93.78 | M58: 9.38
A59: Фарш из говядины | B59: 48.00 | C59: 17.10 | D59: 28.00 | E59: 0.00 | F59: 45.93 | G59: 60.10 | H59: 58.00 | I59: 0.00 | J59: 0.00 | K59: 0.00 | L59: 257.13 | M59: 25.71
A60: Цыплята | B60: 49.66 | C60: 52.00 | D60: 14.70 | E60: 0.00 | F60: 82.70 | G60: 55.00 | H60: 14.67 | I60: 39.42 | J60: 14.67 | K60: 0.00 | L60: 322.82 | M60: 32.28
A61: индейка филе | B61: 0.00 | C61: 0.00 | D61: 0.00 | E61: 0.00 | F61: 0.00 | G61: 0.00 | H61: 0.00 | I61: 0.00 | J61: 0.00 | K61: 0.00 | L61: 0.00 | M61: 0.00
A62: куриная грудка | B62: 0.00 | C62: 0.00 | D62: 0.00 | E62: 0.00 | F62: 0.00 | G62: 0.00 | H62: 0.00 | I62: 0.00 | J62: 0.00 | K62: 64.00 | L62: 64.00 | M62: 6.40
A63: Сыр | B63: 0.00 | C63: 7.00 | D63: 0.00 | E63: 7.00 | F63: 0.00 | G63: 7.00 | H63: 0.00 | I63: 7.00 | J63: 0.00 | K63: 24.70 | L63: 52.70 | M63: 5.27
A64: рыба филе | B64: 0.00 | C64: 0.00 | D64: 0.00 | E64: 0.00 | F64: 0.00 | G64: 0.00 | H64: 0.00 | I64: 0.00 | J64: 52.50 | K64: 0.00 | L64: 52.50 | M64: 5.25
A65: Кофейный напиток | B65: 0.00 | C65: 0.00 | D65: 0.00 | E65: 1.50 | F65: 0.00 | G65: 0.00 | H65: 1.50 | I65: 0.00 | J65: 0.00 | K65: 1.50 | L65: 4.50 | M65: 0.45
A66: Какао-порошок | B66: 0.00 | C66: 1.50 | D66: 0.00 | E66: 0.00 | F66: 1.50 | G66: 0.00 | H66: 0.00 | I66: 0.00 | J66: 1.50 | K66: 0.00 | L66: 4.50 | M66: 0.45
A67: печенье КП | B67: 0.00 | C67: 0.00 | D67: 0.00 | E67: 0.00 | F67: 0.00 | G67: 0.00 | H67: 0.00 | I67: 0.00 | J67: 0.00 | K67: 0.00 | L67: 0.00 | M67: 0.00
A68: крекер | B68: 0.00 | C68: 0.00 | D68: 0.00 | E68: 0.00 | F68: 10.00 | G68: 0.00 | H68: 0.00 | I68: 0.00 | J68: 10.00 | K68: 0.00 | L68: 20.00 | M68: 2.00
A69: Соль | B69: 4.90 | C69: 4.10 | D69: 4.37 | E69: 3.73 | F69: 3.20 | G69: 4.90 | H69: 4.00 | I69: 5.91 | J69: 4.60 | K69: 4.70 | L69: 44.41 | M69: 4.44
A70: печенье | B70: 0.00 | C70: 10.00 | D70: 0.00 | E70: 0.00 | F70: 0.00 | G70: 0.00 | H70: 10.00 | I70: 0.00 | J70: 0.00 | K70: 0.00 | L70: 20.00 | M70: 2.00
A71: Сухари панировочные | B71: 0.00 | C71: 7.00 | D71: 0.00 | E71: 0.00 | F71: 0.00 | G71: 6.00 | H71: 2.00 | I71: 0.00 | J71: 5.00 | K71: 0.00 | L71: 20.00 | M71: 2.00
A72: вафли | B72: 0.00 | C72: 0.00 | D72: 0.00 | E72: 21.00 | F72: 0.00 | G72: 0.00 | H72: 0.00 | I72: 0.00 | J72: 0.00 | K72: 0.00 | L72: 21.00 | M72: 2.10
A73: Крупы, бобовые | B73: 55.50 | C73: 37.40 | D73: 37.00 | E73: 48.00 | F73: 63.50 | G73: 58.00 | H73: 63.00 | I73: 45.60 | J73: 50.15 | K73: 67.70 | L73: 525.85 | M73: 52.59
A74: Овощи разные | B74: 85.49 | C74: 83.50 | D74: 274.72 | E74: 117.59 | F74: 252.87 | G74: 115.21 | H74: 76.30 | I74: 205.00 | J74: 77.30 | K74: 114.00 | L74: 1401.98 | M74: 140.20
A75: Фрукты | B75: 0.00 | C75: 141.00 | D75: 0.00 | E75: 120.00 | F75: 41.00 | G75: 100.00 | H75: 61.00 | I75: 120.00 | J75: 0.00 | K75: 105.00 | L75: 688.00 | M75: 68.80
A76: Фрукты сухие | B76: 15.00 | C76: 0.00 | D76: 20.70 | E76: 0.00 | F76: 0.00 | G76: 15.00 | H76: 0.00 | I76: 17.70 | J76: 0.00 | K76: 18.00 | L76: 86.40 | M76: 8.64
A77: Молочные прод. | B77: 210.00 | C77: 346.90 | D77: 258.00 | E77: 288.00 | F77: 288.00 | G77: 262.50 | H77: 288.00 | I77: 261.11 | J77: 348.90 | K77: 328.00 | L77: 2879.41 | M77: 287.94
A78: Говядина | B78: 48.00 | C78: 17.10 | D78: 28.00 | E78: 41.78 | F78: 45.93 | G78: 60.10 | H78: 58.00 | I78: 52.00 | J78: 0.00 | K78: 0.00 | L78: 350.91 | M78: 35.09
A79: Птица | B79: 49.66 | C79: 52.00 | D79: 14.70 | E79: 0.00 | F79: 82.70 | G79: 55.00 | H79: 14.67 | I79: 39.42 | J79: 14.67 | K79: 64.00 | L79: 386.82 | M79: 38.68
A80: Макаронные изделия | B80: 8.00 | C80: 0.00 | D80: 45.50 | E80: 0.00 | F80: 0.00 | G80: 45.50 | H80: 0.00 | I80: 15.55 | J80: 0.00 | K80: 0.00 | L80: 114.55 | M80: 11.46
A81: Хлеб пшеничный | B81: 51.00 | C81: 65.00 | D81: 45.00 | E81: 45.00 | F81: 45.00 | G81: 51.00 | H81: 59.00 | I81: 45.00 | J81: 50.00 | K81: 45.00 | L81: 501.00 | M81: 50.10
A82: Кондитерские изделия | B82: 0.00 | C82: 10.00 | D82: 0.00 | E82: 21.00 | F82: 10.00 | G82: 0.00 | H82: 10.00 | I82: 0.00 | J82: 10.00 | K82: 0.00 | L82: 61.00 | M82: 6.10
A83: Примечание: расход хлеба пшеничного с учетом расхода сухарей панировочных
B84: Расход продуктов ДОУ
D85: от 3 до 7 лет | K85: брутто
A87: Наименов. прод. | B87: 1 | C87: 2 | D87: 3 | E87: 4 | F87: 5 | G87: 6 | H87: 7 | I87: 8 | J87: 9 | K87: 10 | L87: Кол-во | M87: Среднее
A89: Сахар | B89: 28.08 | C89: 30.40 | D89: 23.70 | E89: 28.00 | F89: 22.90 | G89: 26.50 | H89: 28.00 | I89: 19.21 | J89: 30.60 | K89: 20.83 | L89: 258.22 | M89: 25.82
A90: Заварка | B90: 0.30 | C90: 0.35 | D90: 0.30 | E90: 0.30 | F90: 0.35 | G90: 0.30 | H90: 0.35 | I90: 0.30 | J90: 0.30 | K90: 0.35 | L90: 3.20 | M90: 0.32
A91: Яйцо | B91: 1.00 | C91: 8.64 | D91: 48.00 | E91: 7.80 | F91: 0.00 | G91: 8.50 | H91: 7.80 | I91: 2.50 | J91: 17.64 | K91: 106.40 | L91: 208.28 | M91: 20.83
A92: Дрожжи сухие | B92: 0.20 | C92: 0.00 | D92: 0.30 | E92: 0.00 | F92: 0.00 | G92: 0.38 | H92: 0.00 | I92: 0.20 | J92: 0.00 | K92: 0.20 | L92: 1.28 | M92: 0.13
A93: Батон нарезной | B93: 25.00 | C93: 25.00 | D93: 25.00 | E93: 25.00 | F93: 25.00 | G93: 25.00 | H93: 25.00 | I93: 25.00 | J93: 25.00 | K93: 25.00 | L93: 250.00 | M93: 25.00
A94: Хлеб пшеничный 1с | B94: 26.00 | C94: 33.00 | D94: 20.00 | E94: 20.00 | F94: 20.00 | G94: 20.00 | H94: 34.40 | I94: 20.00 | J94: 20.00 | K94: 20.00 | L94: 233.40 | M94: 23.34
A95: Хлеб сельский | B95: 37.50 | C95: 37.50 | D95: 37.50 | E95: 37.50 | F95: 37.50 | G95: 37.50 | H95: 37.50 | I95: 37.50 | J95: 37.50 | K95: 37.50 | L95: 375.00 | M95: 37.50
A96: Мука пшеничная | B96: 36.40 | C96: 0.00 | D96: 35.31 | E96: 0.00 | F96: 1.21 | G96: 30.00 | H96: 1.30 | I96: 26.10 | J96: 0.00 | K96: 24.70 | L96: 155.02 | M96: 15.50
A97: Кисель-концентрат | B97: 21.60 | C97: 0.00 | D97: 0.00 | E97: 21.60 | F97: 0.00 | G97: 21.60 | H97: 0.00 | I97: 0.00 | J97: 21.60 | K97: 0.00 | L97: 86.40 | M97: 8.64
A98: Макаронные изделия | B98: 0.00 | C98: 0.00 | D98: 45.50 | E98: 0.00 | F98: 0.00 | G98: 45.50 | H98: 0.00 | I98: 0.00 | J98: 0.00 | K98: 0.00 | L98: 91.00 | M98: 9.10
A99: Вермишель | B99: 8.00 | C99: 0.00 | D99: 0.00 | E99: 0.00 | F99: 0.00 | G99: 0.00 | H99: 0.00 | I99: 15.55 | J99: 0.00 | K99: 0.00 | L99: 23.55 | M99: 2.36
A100: Крупа рисовая | B100: 0.00 | C100: 15.00 | D100: 12.00 | E100: 18.00 | F100: 38.50 | G100: 0.00 | H100: 18.00 | I100: 45.60 | J100: 0.00 | K100: 37.70 | L100: 184.80 | M100: 18.48
A101: Крупа кукурузная | B101: 0.00 | C101: 0.00 | D101: 0.00 | E101: 0.00 | F101: 0.00 | G101: 0.00 | H101: 0.00 | I101: 0.00 | J101: 0.00 | K101: 0.00 | L101: 0.00 | M101: 0.00
A102: Крупа манная | B102: 23.00 | C102: 11.40 | D102: 0.00 | E102: 0.00 | F102: 0.00 | G102: 0.00 | H102: 0.00 | I102: 0.00 | J102: 13.15 | K102: 0.00 | L102: 47.55 | M102: 4.76
A103: Горох | B103: 0.00 | C103: 0.00 | D103: 0.00 | E103: 0.00 | F103: 0.00 | G103: 0.00 | H103: 20.20 | I103: 0.00 | J103: 0.00 | K103: 0.00 | L103: 20.20 | M103: 2.02
A104: Крупа пшенная | B104: 0.00 | C104: 11.00 | D104: 0.00 | E104: 30.00 | F104: 0.00 | G104: 0.00 | H104: 0.00 | I104: 0.00 | J104: 0.00 | K104: 30.00 | L104: 71.00 | M104: 7.10
A105: Крупа ячневая | B105: 0.00 | C105: 0.00 | D105: 0.00 | E105: 0.00 | F105: 0.00 | G105: 0.00 | H105: 25.00 | I105: 0.00 | J105: 0.00 | K105: 0.00 | L105: 25.00 | M105: 2.50
A106: Полба | B106: 0.00 | C106: 0.00 | D106: 0.00 | E106: 0.00 | F106: 25.00 | G106: 0.00 | H106: 0.00 | I106: 0.00 | J106: 25.00 | K106: 0.00 | L106: 50.00 | M106: 5.00
A107: Крупа перловая | B107: 0.00 | C107: 0.00 | D107: 0.00 | E107: 0.00 | F107: 0.00 | G107: 8.00 | H107: 0.00 | I107: 0.00 | J107: 0.00 | K107: 0.00 | L107: 8.00 | M107: 0.80
A108: Крупа геркулесовая | B108: 0.00 | C108: 0.00 | D108: 25.00 | E108: 0.00 | F108: 0.00 | G108: 25.00 | H108: 0.00 | I108: 0.00 | J108: 0.00 | K108: 0.00 | L108: 50.00 | M108: 5.00
A109: Крупа пшеничная | B109: 0.00 | C109: 0.00 | D109: 0.00 | E109: 0.00 | F109: 0.00 | G109: 0.00 | H109: 0.00 | I109: 0.00 | J109: 0.00 | K109: 0.00 | L109: 0.00 | M109: 0.00
A110: Крупа гречневая | B110: 32.50 | C110: 0.00 | D110: 0.00 | E110: 0.00 | F110: 0.00 | G110: 25.00 | H110: 0.00 | I110: 0.00 | J110: 12.00 | K110: 0.00 | L110: 69.50 | M110: 6.95
A111: Картофель | B111: 247.16 | C111: 253.17 | D111: 100.20 | E111: 219.10 | F111: 57.62 | G111: 100.20 | H111: 271.80 | I111: 93.52 | J111: 286.57 | K111: 66.80 | L111: 1696.14 | M111: 169.61
A112: Морковь | B112: 26.32 | C112: 10.64 | D112: 38.57 | E112: 10.64 | F112: 36.24 | G112: 49.57 | H112: 10.64 | I112: 60.38 | J112: 10.64 | K112: 33.25 | L112: 286.89 | M112: 28.69
A113: Лук репчатый | B113: 24.04 | C113: 11.31 | D113: 33.48 | E113: 25.70 | F113: 28.92 | G113: 25.51 | H113: 21.78 | I113: 37.25 | J113: 25.02 | K113: 26.20 | L113: 259.21 | M113: 25.92
A114: Свекла | B114: 0.00 | C114: 0.00 | D114: 0.00 | E114: 0.00 | F114: 69.36 | G114: 0.00 | H114: 0.00 | I114: 43.52 | J114: 0.00 | K114: 0.00 | L114: 112.88 | M114: 11.29
A115: Капуста свежая | B115: 55.63 | C115: 20.00 | D115: 202.50 | E115: 50.00 | F115: 124.15 | G115: 55.63 | H115: 0.00 | I115: 56.60 | J115: 37.50 | K115: 20.00 | L115: 622.01 | M115: 62.20
A116: Икра кабачковая | B116: 0.00 | C116: 0.00 | D116: 0.00 | E116: 0.00 | F116: 0.00 | G116: 0.00 | H116: 0.00 | I116: 0.00 | J116: 0.00 | K116: 0.00 | L116: 0.00 | M116: 0.00
A117: Огурцы соленые | B117: 0.00 | C117: 0.00 | D117: 0.00 | E117: 0.00 | F117: 0.00 | G117: 21.84 | H117: 0.00 | I117: 0.00 | J117: 0.00 | K117: 0.00 | L117: 21.84 | M117: 2.18
A118: Помидоры свежие | B118: 0.00 | C118: 0.00 | D118: 52.00 | E118: 0.00 | F118: 0.00 | G118: 0.00 | H118: 0.00 | I118: 52.00 | J118: 0.00 | K118: 0.00 | L118: 104.00 | M118: 10.40
A119: Огурцы свежие | B119: 0.00 | C119: 51.00 | D119: 0.00 | E119: 48.96 | F119: 51.00 | G119: 0.00 | H119: 51.00 | I119: 0.00 | J119: 18.36 | K119: 48.96 | L119: 269.28 | M119: 26.93
A120: Соус Переменка | B120: 0.00 | C120: 0.00 | D120: 0.00 | E120: 0.00 | F120: 0.00 | G120: 0.00 | H120: 0.00 | I120: 0.00 | J120: 0.00 | K120: 0.00 | L120: 0.00 | M120: 0.00
A121: Томат-паста | B121: 1.00 | C121: 0.00 | D121: 5.60 | E121: 0.00 | F121: 1.00 | G121: 0.00 | H121: 0.00 | I121: 1.00 | J121: 0.00 | K121: 3.00 | L121: 11.60 | M121: 1.16
A122: Масло сливочное | B122: 11.00 | C122: 9.00 | D122: 22.10 | E122: 9.90 | F122: 12.33 | G122: 13.10 | H122: 15.90 | I122: 9.01 | J122: 11.00 | K122: 16.20 | L122: 129.54 | M122: 12.95
A123: Масло растительное | B123: 18.70 | C123: 5.50 | D123: 3.50 | E123: 10.33 | F123: 10.35 | G123: 14.30 | H123: 3.00 | I123: 11.20 | J123: 5.77 | K123: 13.38 | L123: 96.03 | M123: 9.60
A124: Фрукты свежие | B124: 0.00 | C124: 114.00 | D124: 0.00 | E124: 114.00 | F124: 0.00 | G124: 114.00 | H124: 0.00 | I124: 114.00 | J124: 0.00 | K124: 114.00 | L124: 570.00 | M124: 57.00
A125: Яблоки | B125: 0.00 | C125: 40.80 | D125: 0.00 | E125: 0.00 | F125: 40.80 | G125: 0.00 | H125: 40.80 | I125: 0.00 | J125: 0.00 | K125: 0.00 | L125: 122.40 | M125: 12.24
A126: крыжовник зам. | B126: 0.00 | C126: 0.00 | D126: 0.00 | E126: 0.00 | F126: 0.00 | G126: 0.00 | H126: 0.00 | I126: 0.00 | J126: 0.00 | K126: 0.00 | L126: 0.00 | M126: 0.00
A127: Лимон | B127: 0.00 | C127: 5.10 | D127: 0.00 | E127: 0.00 | F127: 5.10 | G127: 0.00 | H127: 5.10 | I127: 0.00 | J127: 0.00 | K127: 5.10 | L127: 20.40 | M127: 2.04
A128: Ягодная смесь зам. | B128: 0.00 | C128: 0.00 | D128: 0.00 | E128: 0.00 | F128: 0.00 | G128: 0.00 | H128: 0.00 | I128: 0.00 | J128: 0.00 | K128: 0.00 | L128: 0.00 | M128: 0.00
A129: Сок | B129: 0.00 | C129: 0.00 | D129: 125.00 | E129: 0.00 | F129: 125.00 | G129: 0.00 | H129: 125.00 | I129: 0.00 | J129: 125.00 | K129: 0.00 | L129: 500.00 | M129: 50.00
A130: Фруктовое пюре | B130: 0.00 | C130: 0.00 | D130: 0.00 | E130: 0.00 | F130: 0.00 | G130: 0.00 | H130: 0.00 | I130: 0.00 | J130: 0.00 | K130: 0.00 | L130: 0.00 | M130: 0.00
A131: Сухофрукты | B131: 0.00 | C131: 0.00 | D131: 18.36 | E131: 0.00 | F131: 0.00 | G131: 0.00 | H131: 0.00 | I131: 0.00 | J131: 0.00 | K131: 18.36 | L131: 36.72 | M131: 3.67
A132: Урюк | B132: 15.30 | C132: 0.00 | D132: 0.00 | E132: 0.00 | F132: 0.00 | G132: 15.30 | H132: 0.00 | I132: 15.30 | J132: 0.00 | K132: 0.00 | L132: 45.90 | M132: 4.59
A133: повидло фруктовое | B133: 0.00 | C133: 0.00 | D133: 0.00 | E133: 20.00 | F133: 0.00 | G133: 0.00 | H133: 20.00 | I133: 20.00 | J133: 0.00 | K133: 0.00 | L133: 60.00 | M133: 6.00
A134: Шиповник порошок | B134: 0.00 | C134: 0.00 | D134: 2.70 | E134: 0.00 | F134: 0.00 | G134: 0.00 | H134: 0.00 | I134: 2.70 | J134: 0.00 | K134: 0.00 | L134: 5.40 | M134: 0.54
A135: Молоко | B135: 100.00 | C135: 333.77 | D135: 148.00 | E135: 293.90 | F135: 178.00 | G135: 152.50 | H135: 293.90 | I135: 151.11 | J135: 219.87 | K135: 333.90 | L135: 2204.95 | M135: 220.50
A136: Кефир | B136: 0.00 | C136: 0.00 | D136: 0.00 | E136: 0.00 | F136: 114.00 | G136: 0.00 | H136: 0.00 | I136: 0.00 | J136: 114.00 | K136: 0.00 | L136: 228.00 | M136: 22.80
A137: Ряженка | B137: 0.00 | C137: 0.00 | D137: 114.00 | E137: 0.00 | F137: 0.00 | G137: 114.00 | H137: 0.00 | I137: 0.00 | J137: 0.00 | K137: 0.00 | L137: 228.00 | M137: 22.80
A138: Катык | B138: 114.00 | C138: 0.00 | D138: 0.00 | E138: 0.00 | F138: 0.00 | G138: 0.00 | H138: 0.00 | I138: 114.00 | J138: 0.00 | K138: 0.00 | L138: 228.00 | M138: 22.80
A139: Молоко сгущенное | B139: 0.00 | C139: 20.00 | D139: 0.00 | E139: 0.00 | F139: 0.00 | G139: 0.00 | H139: 0.00 | I139: 0.00 | J139: 20.00 | K139: 0.00 | L139: 40.00 | M139: 4.00
A140: Сметана | B140: 0.00 | C140: 20.28 | D140: 6.00 | E140: 8.90 | F140: 6.00 | G140: 5.00 | H140: 8.90 | I140: 5.00 | J140: 14.28 | K140: 16.38 | L140: 90.74 | M140: 9.07
A141: Творог | B141: 0.00 | C141: 109.28 | D141: 0.00 | E141: 98.80 | F141: 0.00 | G141: 0.00 | H141: 98.80 | I141: 0.00 | J141: 109.28 | K141: 0.00 | L141: 416.16 | M141: 41.62
A142: Говядина | B142: 0.00 | C142: 0.00 | D142: 0.00 | E142: 41.78 | F142: 0.00 | G142: 0.00 | H142: 0.00 | I142: 52.00 | J142: 0.00 | K142: 0.00 | L142: 93.78 | M142: 9.38
A143: Фарш из говядины | B143: 48.00 | C143: 17.10 | D143: 28.00 | E143: 0.00 | F143: 45.93 | G143: 60.10 | H143: 58.00 | I143: 0.00 | J143: 0.00 | K143: 0.00 | L143: 257.13 | M143: 25.71
A144: Цыплята | B144: 76.45 | C144: 80.00 | D144: 22.61 | E144: 0.00 | F144: 127.22 | G144: 84.61 | H144: 22.61 | I144: 60.65 | J144: 22.61 | K144: 0.00 | L144: 496.76 | M144: 49.68
A145: индейка филе | B145: 0.00 | C145: 0.00 | D145: 0.00 | E145: 0.00 | F145: 0.00 | G145: 0.00 | H145: 0.00 | I145: 0.00 | J145: 0.00 | K145: 0.00 | L145: 0.00 | M145: 0.00
A146: куриная грудка | B146: 0.00 | C146: 0.00 | D146: 0.00 | E146: 0.00 | F146: 0.00 | G146: 0.00 | H146: 0.00 | I146: 0.00 | J146: 0.00 | K146: 85.33 | L146: 85.33 | M146: 8.53
A147: Сыр | B147: 0.00 | C147: 7.14 | D147: 0.00 | E147: 7.14 | F147: 0.00 | G147: 7.14 | H147: 0.00 | I147: 7.14 | J147: 0.00 | K147: 25.14 | L147: 53.70 | M147: 5.37
A148: рыба филе | B148: 0.00 | C148: 0.00 | D148: 0.00 | E148: 0.00 | F148: 0.00 | G148: 0.00 | H148: 0.00 | I148: 0.00 | J148: 54.69 | K148: 0.00 | L148: 54.69 | M148: 5.47
A149: Кофейный напиток | B149: 0.00 | C149: 0.00 | D149: 0.00 | E149: 1.50 | F149: 0.00 | G149: 0.00 | H149: 1.50 | I149: 0.00 | J149: 0.00 | K149: 1.50 | L149: 4.50 | M149: 0.45
A150: Какао-порошок | B150: 0.00 | C150: 1.50 | D150: 0.00 | E150: 0.00 | F150: 1.50 | G150: 0.00 | H150: 0.00 | I150: 0.00 | J150: 1.50 | K150: 0.00 | L150: 4.50 | M150: 0.45
A151: печенье | B151: 0.00 | C151: 10.00 | D151: 0.00 | E151: 0.00 | F151: 0.00 | G151: 0.00 | H151: 10.00 | I151: 0.00 | J151: 0.00 | K151: 0.00 | L151: 20.00 | M151: 2.00
A152: крекер | B152: 0.00 | C152: 0.00 | D152: 0.00 | E152: 0.00 | F152: 10.00 | G152: 0.00 | H152: 0.00 | I152: 0.00 | J152: 10.00 | K152: 0.00 | L152: 20.00 | M152: 2.00
A153: Соль | B153: 4.90 | C153: 4.10 | D153: 4.37 | E153: 3.73 | F153: 3.20 | G153: 4.90 | H153: 4.00 | I153: 5.91 | J153: 4.60 | K153: 4.70 | L153: 44.41 | M153: 4.44
A154: печенье КП | B154: 0.00 | C154: 0.00 | D154: 0.00 | E154: 0.00 | F154: 0.00 | G154: 0.00 | H154: 0.00 | I154: 0.00 | J154: 0.00 | K154: 0.00 | L154: 0.00 | M154: 0.00
A155: Сухари панировочные | B155: 0.00 | C155: 7.00 | D155: 0.00 | E155: 0.00 | F155: 0.00 | G155: 6.00 | H155: 2.00 | I155: 0.00 | J155: 5.00 | K155: 0.00 | L155: 20.00 | M155: 2.00
A156: вафли | B156: 0.00 | C156: 0.00 | D156: 0.00 | E156: 21.00 | F156: 0.00 | G156: 0.00 | H156: 0.00 | I156: 0.00 | J156: 0.00 | K156: 0.00 | L156: 21.00 | M156: 2.10
A157: Крупы, бобовые | B157: 55.50 | C157: 37.40 | D157: 37.00 | E157: 48.00 | F157: 63.50 | G157: 58.00 | H157: 63.20 | I157: 45.60 | J157: 50.15 | K157: 67.70 | L157: 526.05 | M157: 52.61
A158: Овощи разные | B158: 106.99 | C158: 92.95 | D158: 332.15 | E158: 135.30 | F158: 310.67 | G158: 152.55 | H158: 83.42 | I158: 250.75 | J158: 91.52 | K158: 131.41 | L158: 1687.71 | M158: 168.77
A159: Фрукты | B159: 0.00 | C159: 159.90 | D159: 0.00 | E159: 114.00 | F159: 45.90 | G159: 114.00 | H159: 45.90 | I159: 114.00 | J159: 0.00 | K159: 119.10 | L159: 712.80 | M159: 71.28
A160: Фрукты сухие | B160: 15.30 | C160: 0.00 | D160: 18.36 | E160: 20.00 | F160: 0.00 | G160: 15.30 | H160: 20.00 | I160: 35.30 | J160: 0.00 | K160: 18.36 | L160: 142.62 | M160: 14.26
A161: Молочные прод. | B161: 214.00 | C161: 353.77 | D161: 262.00 | E161: 293.90 | F161: 292.00 | G161: 266.50 | H161: 293.90 | I161: 265.11 | J161: 353.87 | K161: 333.90 | L161: 2928.95 | M161: 292.90
A162: птица | B162: 76.45 | C162: 80.00 | D162: 22.61 | E162: 0.00 | F162: 127.22 | G162: 84.61 | H162: 22.61 | I162: 60.65 | J162: 22.61 | K162: 85.33 | L162: 582.09 | M162: 58.21
A163: Говядина | B163: 48.00 | C163: 17.10 | D163: 28.00 | E163: 41.78 | F163: 45.93 | G163: 60.10 | H163: 58.00 | I163: 52.00 | J163: 0.00 | K163: 0.00 | L163: 350.91 | M163: 35.09
A164: Макаронные изделия | B164: 8.00 | C164: 0.00 | D164: 45.50 | E164: 0.00 | F164: 0.00 | G164: 45.50 | H164: 0.00 | I164: 15.55 | J164: 0.00 | K164: 0.00 | L164: 114.55 | M164: 11.46
A165: Хлеб пшеничный | B165: 51.00 | C165: 65.00 | D165: 45.00 | E165: 45.00 | F165: 45.00 | G165: 51.00 | H165: 61.40 | I165: 45.00 | J165: 50.00 | K165: 45.00 | L165: 503.40 | M165: 50.34
A166: Кондитерские изделия | B166: 0.00 | C166: 10.00 | D166: 0.00 | E166: 21.00 | F166: 10.00 | G166: 0.00 | H166: 10.00 | I166: 0.00 | J166: 10.00 | K166: 0.00 | L166: 61.00 | M166: 6.10

Sheet 3-7 лет Послед
A1: "Согласовано" | E1: "Утверждаю"
A2: ________________________ | E2: Заместитель генерального директора по организации питания АО "Департамент продовольствия и социального питания г. Казани"
A3: __________________________ | E3: __________________А.К. Агапова
E4: Май 2025г
C5: Примерное 10-дневное меню
C6: для организации питания детей в дошкольных образовательных учреждениях
C7: от 3-7 лет с 7-12 часовым пребыванием
B8: 1 неделя
A9: День 1 - ый
A10: Прием пищи | C10: Выход блюда | D10: Пищевые вещества (г) | G10: Энергетическая | H10: № рецептуры
A11: Наименование блюд | G11: ценность
D12: белки | E12: жиры | F12: угл-ды | G12: Ккал
B13: ЗАВТРАК
A14: Каша манная молочная с маслом | C14: 200/3 | D14: 10.00 | E14: 10.00 | F14: 24.50 | G14: 228.00 | H14: ТТК №4
A15: Чай с сахаром | C15: 180/5 | D15: 0.06 | E15: 0.02 | F15: 4.99 | G15: 20.00 | H15: № 411 Дели2016
A16: Бутерброд с маслом сливочным | C16: 25/5 | D16: 1.90 | E16: 4.40 | F16: 13.00 | G16: 99.00 | H16: №1 Дели2010
A17: Итого: | C17: 418 | D17: =SUM(D13:D16) -> 11.96 | E17: =SUM(E13:E16) -> 14.42 | F17: =SUM(F13:F16) -> 42.49 | G17: =SUM(G13:G16) -> 347.00
A18: Сок фруктовый | C18: 125 | D18: 0.90 | E18: 0.08 | F18: 22.00 | G18: 91.00 | H18: №399 Сб.Дели2010
A19: Итого: | C19: =SUM(C18:C18) -> 125 | D19: =SUM(D18) -> 0.90 | E19: =SUM(E18) -> 0.08 | F19: =SUM(F18) -> 22.00 | G19: =SUM(G18) -> 91.00
C20: 543 | D20: =D17+D19 -> 12.86 | E20: =E17+E19 -> 14.50 | F20: =F17+F19 -> 64.49 | G20: =G17+G19 -> 438.00
B21: ОБЕД
A22: Салат из свежей капусты | C22: 50 | D22: 0.80 | E22: 2.50 | F22: 4.60 | G22: 45.00 | H22: № 21Дели 2016
A23: Суп вермишелевый с картофелем и курицей | C23: 200/10 | D23: 3.86 | E23: 5.80 | F23: 15.24 | G23: 133.00 | H23: №88 Дели 2016
A24: Тефтели из говядины с соусом томатным | C24: 70/10 | D24: 6.2 | E24: 6.5 | F24: 5 | G24: 103 | H24: ТТК № 1152 от 09.10.2020 и №364 С-Петербург 2008
A25: Каша гречневая вязкая | C25: 130/3 | D25: 6.20 | E25: 5.80 | F25: 38.00 | G25: 229.00 | H25: №182,Дели 2016
A26: Кисель | C26: 180 | F26: 10.00 | G26: 40.00 | H26: №284Партнер2014
A27: Хлеб сельский | C27: 37.5 | D27: 1.8 | E27: 0.4 | F27: 18 | G27: 82.5
A28: Итого: | C28: 690.5 | D28: =SUM(D21:D27) -> 18.86 | E28: =SUM(E21:E27) -> 21.00 | F28: =SUM(F21:F27) -> 90.84 | G28: =SUM(G21:G27) -> 632.50
B29: ПОЛДНИК
A30: Булочка Домашняя | C30: 50 | D30: 4.90 | E30: 5.00 | F30: 38.00 | G30: 217.00 | H30: №258 Партнер г. Уфа 2014
A31: Катык | C31: 110 | D31: 3.77 | E31: 2.75 | F31: 5 | G31: 62.1 | H31: №401Дели2010
A32: Рагу с курицей | C32: 120/25 | D32: 6.00 | E32: 9.50 | F32: 16.90 | G32: 177.00 | H32: ТТК №63
A33: Напиток из урюка | C33: 180 | D33: 0.6 | E33: 0.1 | F33: 15.0 | G33: 63 | H33: ТТК №68
A34: Хлеб пшеничный 1с | C34: 20 | D34: 1.52 | E34: 0.16 | F34: 9.84 | G34: 47.00
A35: Итого: | C35: 505 | D35: =SUM(D30:D34) -> 16.79 | E35: =SUM(E30:E34) -> 17.47 | F35: =SUM(F30:F34) -> 84.74 | G35: =SUM(G30:G34) -> 565.60
A36: ВСЕГО: | C36: =C17+C19+C28+C35 -> 1738.5 | D36: =D17+D19+D28+D35 -> 48.51 | E36: =E17+E19+E28+E35 -> 52.97 | F36: =F17+F19+F28+F35 -> 240.07 | G36: =G17+G19+G28+G35 -> 1636.10
A37: День 2- ой
A38: Прием пищи | C38: Выход блюда | D38: Пищевые вещества (г) | G38: Энергетическая | H38: № рецептуры
A39: Наименование блюд | G39: ценность
D40: белки | E40: жиры | F40: угл-ды | G40: Ккал
B41: ЗАВТРАК
A42: Каша "Дружба" молочная с маслом | C42: 200/3 | D42: 5.20 | E42: 5.80 | F42: 25.20 | G42: 173.80 | H42: ТТК №7
A43: Какао с молоком | C43: 180 | D43: 2.42 | E43: 2.58 | F43: 13.61 | G43: 87.30 | H43: №272 Парнер г. Уфа 2014
A44: Бутерброд с сыром, маслом | C44: 25/7/3 | D44: 4.00 | E44: 6.00 | F44: 12.83 | G44: 122.00 | H44: №3 Дели2010
A45: Итого: | C45: 418 | D45: =SUM(D41:D44) -> 11.62 | E45: =SUM(E41:E44) -> 14.38 | F45: =SUM(F41:F44) -> 51.64 | G45: =SUM(G41:G44) -> 383.10
A46: Фрукты свежие | C46: 100 | D46: 1.20 | E46: 0.34 | F46: 10.50 | G46: 49.00 | H46: № 368 Дели 2010
A47: апельсин
A48: Итого: | C48: 100 | D48: =SUM(D46) -> 1.20 | E48: =SUM(E46) -> 0.34 | F48: =SUM(F46) -> 10.50 | G48: =SUM(G46) -> 49.00
C49: 518 | D49: =D45+D48 -> 12.82 | E49: =E45+E48 -> 14.72 | F49: =F45+F48 -> 62.14 | G49: =G45+G48 -> 432.10
B50: ОБЕД
A51: Огурцы свежие порционно | C51: 50 | D51: 0.35 | E51: 0.05 | F51: 0.95 | G51: 6.00 | H51: стр563,сб1996
A52: Суп из овощей с мясными фрикадельками, со сметаной | C52: 200/15/6 | D52: 6.20 | E52: 5.25 | F52: 29.00 | G52: 188.00 | H52: №64 "Партнер"2014
A53: Котлеты рубленые из птицы | C53: 70 | D53: 6.20 | E53: 10.80 | F53: 3.00 | G53: 134.00 | H53: № 205,справ.М2003
A54: Пюре Картофельное | C54: 130 | D54: 3.70 | E54: 4.44 | F54: 25.00 | G54: 155.00 | H54: №137 Партнер 2014
A55: Компот из свежих яблок | C55: 180 | D55: 0.10 | E55: 0.10 | F55: 11.80 | G55: 49.00 | H55: № 390 Дели 2016
A56: Хлеб сельский | C56: 37.5 | D56: 1.8 | E56: 0.4 | F56: 18 | G56: 82.5
A57: Итого: | C57: 683.5 | D57: =SUM(D51:D56) -> 18.35 | E57: =SUM(E51:E56) -> 21.04 | F57: =SUM(F51:F56) -> 87.75 | G57: =SUM(G51:G56) -> 614.50
B58: ПОЛДНИК
A59: Кондитерские изделия | C59: 10 | D59: 3.86 | E59: 3.38 | F59: 34.10 | G59: 180.00
A60: печенье
A61: Молоко кипяченое | C61: 110 | D61: 2.50 | E61: 2.75 | F61: 4.00 | G61: 51.00 | H61: №419 Дели2016
A62: Суфле из творога с молоком сгущенным | C62: 150/20 | D62: 9.00 | E62: 12.50 | F62: 24.00 | G62: 245.00 | H62: ТТК №567
A63: Чай с сахаром и лимоном | C63: 180/5/5 | D63: 0.12 | E63: 0.01 | F63: 10.20 | G63: 41.00 | H63: №393Дели2010
A64: Хлеб пшеничный 1с | C64: 20 | D64: 1.52 | E64: 0.16 | F64: 9.84 | G64: 47.00
A65: Итого: | C65: 500 | D65: =SUM(D58:D64) -> 17.00 | E65: =SUM(E58:E64) -> 18.80 | F65: =SUM(F58:F64) -> 82.14 | G65: =SUM(G58:G64) -> 564.00
A66: ВСЕГО: | C66: =C45+C48+C57+C65 -> 1701.5 | D66: =D45+D48+D57+D65 -> 48.17 | E66: =E45+E48+E57+E65 -> 54.56 | F66: =F45+F48+F57+F65 -> 232.03 | G66: =G45+G48+G57+G65 -> 1610.60
A67: День 3 - ий
A68: Прием пищи | C68: Выход блюда | D68: Пищевые вещества (г) | G68: Энергетическая | H68: № рецептуры
A69: Наименование блюд | G69: ценность
D70: белки | E70: жиры | F70: угл-ды | G70: Ккал
B71: ЗАВТРАК
A72: Каша Геркулесовая молочная с маслом | C72: 200/3 | D72: 6.70 | E72: 7.50 | F72: 22.00 | G72: 182.30 | H72: ТТК №5
A73: Чай с молоком,сахаром | C73: 180/5 | D73: 2.60 | E73: 2.30 | F73: 14.30 | G73: 89.00 | H73: № 394 Дели2010
A74: Бутерброд с маслом сливочным | C74: 25/5 | D74: 1.91 | E74: 4.35 | F74: 12.89 | G74: 99.00 | H74: №1 Дели2010
A75: Итого: | C75: 418 | D75: =SUM(D72:D74) -> 11.21 | E75: =SUM(E72:E74) -> 14.15 | F75: =SUM(F72:F74) -> 49.19 | G75: =SUM(G72:G74) -> 370.30
A76: Сок | C76: 125 | D76: 1.63 | E76: 0.10 | F76: 15.00 | G76: 67.00 | H76: №418Дели2016
A77: яблочно-абрикосовый
A78: Итого: | C78: =SUM(C76) -> 125 | D78: =SUM(D76) -> 1.63 | E78: =SUM(E76) -> 0.10 | F78: =SUM(F76) -> 15.00 | G78: =SUM(G76) -> 67.00
C79: 543 | D79: =D75+D78 -> 12.84 | E79: =E75+E78 -> 14.25 | F79: =F75+F78 -> 64.19 | G79: =G75+G78 -> 437.30
B80: ОБЕД
A81: Помидоры свежие порционно | C81: 50 | D81: 0.55 | E81: 0.10 | F81: 1.90 | G81: 12.00 | H81: стр563,сб1996
A82: Суп с рисовой крупой и картофелем с курицей | C82: 200/10 | D82: 2.40 | E82: 9.00 | F82: 3.40 | G82: 104.00 | H82: №86 Дели 2016
A83: Соус мясной "Смак" | C83: 70 | D83: 10.10 | E83: 6.80 | F83: 17.00 | G83: 170.00 | H83: ТТК № 1523 от 28.07.2021
A84: Макароны отварные | C84: 130 | D84: 4.80 | E84: 3.60 | F84: 29.40 | G84: 169.00 | H84: №218 Дели 2016
A85: Компот из сухофруктов | C85: 180 | D85: 0.18 | E85: 0.1 | F85: 25.9 | G85: 89 | H85: №394, Дели 2016
A86: Хлеб сельский | C86: 37.5 | D86: 1.8 | E86: 0.4 | F86: 18 | G86: 82.5
A87: Итого: | C87: 682.5 | D87: =SUM(D81:D86) -> 19.83 | E87: =SUM(E81:E86) -> 19.99 | F87: =SUM(F81:F86) -> 95.56 | G87: =SUM(G81:G86) -> 626.50
B88: ПОЛДНИК
A89: Ряженка | C89: 110 | D89: 3.19 | E89: 2.75 | F89: 4.62 | G89: 59.00 | H89: №401 Дели2010
A90: Булочка Дорожная | C90: 50 | D90: 3.55 | E90: 5.91 | F90: 30.10 | G90: 188.00 | H90: №453 Дели 2016
A91: Яйцо вареное | C91: 48 | D91: 5.10 | E91: 4.60 | F91: 0.30 | G91: 63.00 | H91: №227 Дели 2016
A92: Капуста тушеная (в сметанном соусе) | C92: 130 | D92: 3.25 | E92: 5.3 | F92: 25.3 | G92: 162 | H92: ТТК№53Д
A93: Напиток шиповника | C93: 180/5 | D93: 0.6 | E93: 0.3 | F93: 6.5 | G93: 31 | H93: ТТК № 59
A94: Хлеб пшеничный 1с | C94: 20 | D94: 1.52 | E94: 0.16 | F94: 9.84 | G94: 47.00
A95: Итого: | C95: 543 | D95: =SUM(D89:D94) -> 17.21 | E95: =SUM(E89:E94) -> 19.02 | F95: =SUM(F89:F94) -> 76.66 | G95: =SUM(G89:G94) -> 550.00
A96: ВСЕГО: | C96: =C75+C78+C87+C95 -> 1768.5 | D96: =D75+D78+D87+D95 -> 49.88 | E96: =E75+E78+E87+E95 -> 53.26 | F96: =F75+F78+F87+F95 -> 236.41 | G96: =G75+G78+G87+G95 -> 1613.80
A97: День 4 - ый
A98: Прием пищи | C98: Выход блюда | D98: Пищевые вещества (г) | G98: Энергетическая | H98: № рецептуры
A99: Наименование блюд | G99: ценность
D100: белки | E100: жиры | F100: угл-ды | G100: Ккал
B101: ЗАВТРАК
A102: Каша пшенная молочная с маслом | C102: 200/3 | D102: 8.00 | E102: 6.60 | F102: 26.00 | G102: 195.40 | H102: ТТК №6
A103: Кофейный напиток с молоком | C103: 180 | D103: 1.22 | E103: 1.34 | F103: 11.94 | G103: 65.00 | H103: №270 Партнер г. Уфа 2014
A104: Бутерброд с сыром, маслом | C104: 25/7/3 | D104: 4.00 | E104: 6.00 | F104: 12.83 | G104: 122.00 | H104: №3 Дели2010
A105: Итого: | C105: 418 | D105: =SUM(D101:D104) -> 13.22 | E105: =SUM(E101:E104) -> 13.94 | F105: =SUM(F101:F104) -> 50.77 | G105: =SUM(G101:G104) -> 382.40
A106: Фрукты свежие | C106: 100 | D106: 0.40 | E106: 0.40 | F106: 12.00 | G106: 53.20 | H106: № 386 Дели 2016
A107: яблоко
A108: Итого: | C108: =SUM(C106) -> 100 | D108: =SUM(D106) -> 0.40 | E108: =SUM(E106) -> 0.40 | F108: 12.00 | G108: 53.20
C109: 518 | D109: =D105+D108 -> 13.62 | E109: =E105+E108 -> 14.34 | F109: =F105+F108 -> 62.77 | G109: =G105+G108 -> 435.60
B110: ОБЕД
A111: Салат из свежих огурцов | C111: 50 | D111: 0.37 | E111: 3.00 | F111: 1.20 | G111: 33.50 | H111: №13 Дели 2016
A112: Щи со свежей капустой, картофелем, на м/б и сметаной | C112: 200/5 | D112: 4.60 | E112: 8.00 | F112: 23.80 | G112: 186.00 | H112: №124 сб.шк.2004
A113: Жаркое по-домашнему из отварной говядины | C113: 160 | D113: 10.9 | E113: 11.1 | F113: 33.58 | G113: 278 | H113: ТТК №29 Д
A114: Кисель | C114: 180 | F114: 10.00 | G114: 40.00 | H114: №284Партнер2014
A115: Хлеб сельский | C115: 37.5 | D115: 1.8 | E115: 0.4 | F115: 18 | G115: 82.5
A116: Итого: | C116: 632.5 | D116: =SUM(D111:D115) -> 17.67 | E116: =SUM(E111:E115) -> 22.50 | F116: =SUM(F111:F115) -> 86.58 | G116: =SUM(G111:G115) -> 620.00
B117: ПОЛДНИК
A118: Кондитерские изделия | C118: 21 | D118: 2.50 | E118: 5.50 | F118: 35.00 | G118: 190.00
A119: вафли
A120: Молоко кипяченое | C120: 110 | D120: 2.50 | E120: 2.75 | F120: 4.00 | G120: 51.00 | H120: №419 Дели2016
A122: Пудинг из творога с рисом с повидлом | C122: 130/20 | D122: 9.00 | E122: 10.40 | F122: 28.30 | G122: 242.00 | H122: № 250 Дели 2016
A124: Чай с сахаром | C124: 180/5 | D124: 0.06 | E124: 0.02 | F124: 4.99 | G124: 20.00 | H124: № 411 Дели2016
A125: Хлеб пшеничный 1с | C125: 20 | D125: 1.52 | E125: 0.16 | F125: 9.84 | G125: 47.00
A126: Итого: | C126: 486 | D126: =SUM(D117:D125) -> 15.58 | E126: =SUM(E117:E125) -> 18.83 | F126: =SUM(F117:F125) -> 82.13 | G126: =SUM(G117:G125) -> 550.00
A127: ВСЕГО: | C127: =C105+C108+C116+C126 -> 1636.5 | D127: =D105+D108+D116+D126 -> 46.87 | E127: =E105+E108+E116+E126 -> 55.67 | F127: =F105+F108+F116+F126 -> 231.48 | G127: =G105+G108+G116+G126 -> 1605.60
A128: День 5 - ый
A129: Прием пищи | C129: Выход блюда | D129: Пищевые вещества (г) | G129: Энергетическая | H129: № рецептуры
A130: Наименование блюд | G130: ценность
D131: белки | E131: жиры | F131: угл-ды | G131: Ккал
B132: ЗАВТРАК
A133: Каша полбяная молочная с маслом | C133: 200/3 | D133: 8 | E133: 7.8 | F133: 19 | G133: 194 | H133: ТТК №1
A134: Какао с молоком | C134: 180 | D134: 2.42 | E134: 2.58 | F134: 13.61 | G134: 87.30 | H134: №272 Парнер г. Уфа 2014
A135: Бутерброд с маслом сливочным | C135: 25/5 | D135: 1.91 | E135: 4.35 | F135: 12.89 | G135: 99.00 | H135: №1 Дели2010
A136: Итого: | C136: 413 | D136: =SUM(D132:D135) -> 12.33 | E136: =SUM(E132:E135) -> 14.73 | F136: =SUM(F132:F135) -> 45.50 | G136: =SUM(G132:G135) -> 380.30
A137: Сок | C137: 125 | D137: 1.20 | E137: 0.06 | F137: 17.50 | G137: 75.00 | H137: №418Дели2016
A138: вишневый
A139: Итого: | C139: =SUM(C137) -> 125 | D139: =SUM(D137:D138) -> 1.20 | E139: =SUM(E137:E138) -> 0.06 | F139: 17.50 | G139: 75.00
C140: 538 | D140: =D136+D139 -> 13.53 | E140: =E136+E139 -> 14.79 | F140: 63.00 | G140: 455.30
B141: ОБЕД
A142: Огурцы свежие порционно | C142: 50 | D142: 0.35 | E142: 0.05 | F142: 0.95 | G142: 6.00 | H142: стр563,сб1996
A143: Свекольник с курицей , со сметаной | C143: 200/10/6 | D143: 3.80 | E143: 5.40 | F143: 18.60 | G143: 138.00 | H143: №35,сб Пермь2001
A144: Плов из курицы | C144: 160 | D144: 12 | E144: 14 | F144: 38.9 | G144: 330 | H144: №321 Дели 2016
A145: Компот из свежих яблок | C145: 180 | D145: 0.10 | E145: 0.10 | F145: 11.80 | G145: 49.00 | H145: № 390 Дели 2016
A146: Хлеб сельский | C146: 37.5 | D146: 1.8 | E146: 0.4 | F146: 18 | G146: 82.5
A147: Итого: | C147: 633.5 | D147: =SUM(D142:D146) -> 18.05 | E147: =SUM(E142:E146) -> 19.95 | F147: =SUM(F142:F146) -> 88.25 | G147: =SUM(G142:G146) -> 605.50
B148: ПОЛДНИК
A149: Кондитерские изделия | C149: 10 | D149: 2.00 | E149: 3.00 | F149: 25.00 | G149: 129.00
A150: крекер
A151: Кефир | C151: 110 | D151: 3.68 | E151: 2.75 | F151: 5.07 | G151: 68.00 | H151: №401 Дели2010
A152: Капуста тушеная с мясом | C152: 130 | D152: 10.6 | E152: 12.65 | F152: 33 | G152: 288 | H152: №54-10М Сборник рецептур Москва
A153: Чай с сахаром и лимоном | C153: 180/5/5 | D153: 0.12 | E153: 0.01 | F153: 10.20 | G153: 41.00 | H153: №393Дели2010
A154: Хлеб пшеничный 1с | C154: 20 | D154: 1.52 | E154: 0.16 | F154: 9.84 | G154: 47.00
A155: Итого: | C155: 460 | D155: =SUM(D149:D154) -> 17.92 | E155: =SUM(E149:E154) -> 18.57 | F155: =SUM(F149:F154) -> 83.11 | G155: =SUM(G149:G154) -> 573.00
A156: ВСЕГО: | C156: =C136+C139+C147+C155 -> 1631.5 | D156: =D136+D139+D147+D155 -> 49.50 | E156: =E136+E139+E147+E155 -> 53.31 | F156: =F136+F139+F147+F155 -> 234.36 | G156: =G136+G139+G147+G155 -> 1633.80
C157: 2 неделя
A158: День 6 - ой
A159: Прием пищи | C159: Выход блюда | D159: Пищевые вещества (г) | G159: Энергетическая | H159: № рецептуры
A160: Наименование блюд | G160: ценность
D161: белки | E161: жиры | F161: угл-ды | G161: Ккал
B162: ЗАВТРАК
A163: Каша Геркулесовая молочная с маслом | C163: 200/3 | D163: 6.70 | E163: 7.50 | F163: 22.00 | G163: 182.30 | H163: ТТК №5
A164: Чай с молоком,сахаром | C164: 180/5 | D164: 2.60 | E164: 2.30 | F164: 14.30 | G164: 89.00 | H164: № 394 Дели2010
A165: Бутерброд с сыром, маслом | C165: 25/7/3 | D165: 4.00 | E165: 6.00 | F165: 12.83 | G165: 122.00 | H165: №3 Дели2010
A166: Итого: | C166: 423 | D166: =SUM(D163:D165) -> 13.30 | E166: =SUM(E163:E165) -> 15.80 | F166: =SUM(F163:F165) -> 49.13 | G166: =SUM(G163:G165) -> 393.30
A167: Фрукты свежие | C167: 100 | D167: 0.40 | E167: 0.40 | F167: 12.00 | G167: 53.20 | H167: № 386 Дели 2016
A168: яблоко
A169: Итого: | C169: 85 | D169: =SUM(D167:D168) -> 0.40 | E169: =SUM(E167:E168) -> 0.40 | F169: =SUM(F167:F168) -> 12.00 | G169: =SUM(G167:G168) -> 53.20
C170: 523 | D170: =D166+D169 -> 13.70 | E170: 15.40 | F170: =F166+F169 -> 61.13 | G170: =G166+G169 -> 446.50
B171: ОБЕД
A172: Салат из свежей капусты | C172: 50 | D172: 0.80 | E172: 2.50 | F172: 4.60 | G172: 45.00 | H172: № 21Дели 2016
A173: Рассольник ленинградский с мясными фрикадельками, со сметаной | C173: 200/15/5 | D173: 3.56 | E173: 4.50 | F173: 23.60 | G173: 149.00 | H173: №82 Дели 2016
A174: Биточки куриные "Солнышко" | C174: 70 | D174: 8.00 | E174: 10.50 | F174: 6.20 | G174: 152.00 | H174: ТТК №97Д
A175: Макароны отварные | C175: 130 | D175: 4.80 | E175: 3.60 | F175: 29.40 | G175: 169.00 | H175: №218 Дели 2016
A176: Кисель | C176: 180 | F176: 10.00 | G176: 40.00 | H176: №284Партнер2014
A177: Хлеб сельский | C177: 37.5 | D177: 1.8 | E177: 0.4 | F177: 18 | G177: 82.5
A178: Итого: | C178: 687.5 | D178: =SUM(D172:D177) -> 18.96 | E178: =SUM(E172:E177) -> 21.50 | F178: 91.80 | G178: 637.50
B179: ПОЛДНИК
A180: Булочка сдобная | C180: 50 | D180: 3.8 | E180: 4.8 | F180: 22.3 | G180: 148 | H180: №257 Партнер2014 г. Уфа
A181: Ряженка | C181: 110 | D181: 3.19 | E181: 2.75 | F181: 4.62 | G181: 59.00 | H181: №401 Дели2010
A182: Гречка с фаршем и овощами | C182: 130 | D182: 7.30 | E182: 10.00 | F182: 33.20 | G182: 252.00 | H182: ТТК №1630 от 10.11.2021
A183: Напиток из урюка | C183: 180 | D183: 0.6 | E183: 0.1 | F183: 15.0 | G183: 63 | H183: ТТК №68
A184: Хлеб пшеничный 1с | C184: 20 | D184: 1.52 | E184: 0.16 | F184: 9.84 | G184: 47.00
A185: Итого: | C185: 490 | D185: =SUM(D180:D184) -> 16.41 | E185: =SUM(E180:E184) -> 17.77 | F185: =SUM(F180:F184) -> 84.96 | G185: =SUM(G180:G184) -> 568.50
A186: ВСЕГО: | C186: =C166+C169+C178+C185 -> 1685.5 | D186: =D166+D169+D178+D185 -> 49.07 | E186: =E166+E169+E178+E185 -> 55.47 | F186: =F166+F169+F178+F185 -> 237.89 | G186: =G166+G169+G178+G185 -> 1652.50
A187: День 7 - ой
A188: Прием пищи | C188: Выход блюда | D188: Пищевые вещества (г) | G188: Энергетическая | H188: № рецептуры
A189: Наименование блюд | G189: ценность
D190: белки | E190: жиры | F190: угл-ды | G190: Ккал
B191: ЗАВТРАК
A192: Каша ячневая молочная с маслом | C192: 200/3 | D192: 9.50 | E192: 8.80 | F192: 20.10 | G192: 198.00 | H192: ТТК №8
A193: Кофейный напиток с молоком | C193: 180 | D193: 1.22 | E193: 1.34 | F193: 11.94 | G193: 65.00 | H193: №270 Партнер г. Уфа 2014
A194: Бутерброд с маслом сливочным | C194: 25/5 | D194: 1.91 | E194: 4.35 | F194: 12.89 | G194: 99.00 | H194: №1 Дели2010
A195: Итого: | C195: 413 | D195: =SUM(D192:D194) -> 12.63 | E195: =SUM(E192:E194) -> 14.49 | F195: =SUM(F192:F194) -> 44.93 | G195: =SUM(G192:G194) -> 362.00
A196: Сок | C196: 125 | D196: 0.60 | E196: 0.06 | F196: 22.00 | G196: 91.00 | H196: №418Дели2016
A197: персик-банан
A198: Итого: | C198: =SUM(C196) -> 125 | D198: =SUM(D196:D197) -> 0.60 | E198: =SUM(E196:E197) -> 0.06 | F198: =SUM(F196:F197) -> 22.00 | G198: =SUM(G196:G197) -> 91.00
C199: 538 | D199: =D195+D198 -> 13.23 | E199: =E195+E198 -> 14.55 | F199: 66.93 | G199: 453.00
B200: ОБЕД
A201: Огурцы свежие порционно | C201: 50 | D201: 0.35 | E201: 0.05 | F201: 0.95 | G201: 6.00 | H201: стр563,сб1996
A203: Суп картофельный с горохом с курицей и гренками | C203: 200/10/10 | D203: 3.80 | E203: 3.50 | F203: 20.50 | G203: 129.00
... 128 more rows
